Cogmind - Beta 10.1 @@@ ROGUE MODE // 2020.09.30 @ 01:31:46 // Winter2019/RPGLIKE Player: Hermelin Result: Destroyed by Architect with Modified Quantum Sheargun Performance ------------- Evolutions (9) 4500 Regions Visited (36) 7200 Robots Destroyed (720) 3600 Value Destroyed (35543) 35543 Prototype IDs (182) 3640 Alien Tech Used (7) 1400 Bonus (36366) 36366 TOTAL SCORE: 92249 Bonus ------- Triggered High Security 1000 High Alert Combat Kills 11665 Follower Combat Kills 1830 Network Hubs Disabled 800 Aligned with FarCom 300 Met Data Miner 300 Met Imprinter 300 Destroyed Z-Imprinter 1000 Exposed GOLEM Chamber 500 Met Zhirov 300 Built Enhanced Grunts 300 Met R17 at Cetus 500 Scanned by Researcher 500 Pursued by Intercept 1000 Acquired SGEMP 2000 Delivered SGEMP 2000 Met MAIN.C 5000 Destroyed MAIN.C Shell 5000 Zhirov Destroyed MAIN.C 3000 Met Architect 300 Destroyed A8 300 Destroyed A6 400 Friendly Fire -1929 Cogmind --------- Core Integrity 0/1800 Matter 215/300 Energy 435/435 System Corruption 0% Temperature Cool (6) Movement Walking (130) Ox1 Location -1/Access_0 Parts ------- > --- POWER (3) -------- Compact Particle Reactor Quantum Reactor > --- PROPULSION (4) --- Experimental Biometal Leg Experimental Biometal Leg Cooled Antigrav System > --- UTILITY (15) ----- Gravity Neutralizing Apparatus Zionite Metafield Generator Experimental Core Analyzer Experimental Weapon Cycler Femtoactuators Experimental Actuator Array Experimental Phase Shifter SHELL Armor Experimental Thermal Shield > --- WEAPON (4) ------- Hypervelocity Multirail Plasma Lance > --- INVENTORY (8) ---- Combat Linear Gravjet Desublimator Experimental Actuator Array Makeshift Cloaking Device Advanced Hardlight Generator System Purifier Peak State ------------ > --- POWER ------------ Heavy Antimatter Reactor Vortex Chain Reactor > --- PROPULSION ------- Combat Linear Gravjet Combat Linear Gravjet Combat Linear Gravjet Combat Linear Gravjet > --- UTILITY ---------- Advanced Power Amplifier Zionite Metafield Generator Experimental Terrain Scanner Experimental Core Analyzer Advanced Armor Integrity Analyzer Femtoactuators Experimental Actuator Array Experimental Transmission Jammer Advanced Reaction Control System Experimental Phase Shifter Assembled Alloy Armor SHELL Armor System Purifier > --- WEAPON ----------- Hypervelocity Multirail Plasma Lance Enhanced Force Lance Enhanced Force Lance > --- INVENTORY -------- Protomatter Makeshift Cloaking Device Beam Splitter Advanced Hardlight Generator Transdimensional Reconstructor Integrity Redistributor Integrity Redistributor [Rating: 242] Favorites ----------- Power Cold Fusion Reactor Engine Heavy Ion Engine Power Core Reinforced Fission Core Reactor Cold Fusion Reactor Propulsion Combat Antigrav System Treads Improved Treads Leg Experimental Biometal Leg Hover Unit Combat Antigrav System Flight Unit Improved Flight Unit Utility Powered Armor Device Experimental Transmission Jammer Storage Assembled Biocell Array Processor Improved Armor Integrity Analyzer Hackware Hacking Suite Protection Powered Armor Weapon Kinetic Spear Energy Gun Improved EM Shotgun Energy Cannon High-powered Disruptor Cannon Ballistic Gun 8R-AWN's Boregun Launcher Grenade Launcher Special Weapon Experimental Stasis Projector Impact Weapon Makeshift Hammer Slashing Weapon Greatsword Piercing Weapon Kinetic Spear Build | -11 -10 -10 -9 -9 -9 -8 -8 -7 -7 -7 -7 -6 -6 -6 -6 -6 -6 -5 -5 -5 -5 -5 -5 -4 -4 -4 -4 -3 -3 -3 -2 -2 -2 -1 -1 -1 ------- Run | Scr Mat Min Mat Min Exi Min Mat Fac Low Low Dat Pro Fac Low Low Zio Dee Pro Fac Ext Cet Arc Hub Fac Upp Upp Zhi Pro Res Tes Res Qua Sec Acc Com Ac0 Slots Evolved 21 | 3 2 . 4 . 1 1 2 3 . . . 1 . . . . . . 1 . . . . 1 . . . . 1 . . . 1 . . . Power 2 | . . . 1 . . . . 1 . . . . . . . . . . . . . . . . . . . . . . . . . . . . Propulsion 3 | 1 . . . . 1 . . 1 . . . . . . . . . . . . . . . . . . . . . . . . . . . . Utility 13 | 1 1 . 3 . . 1 1 1 . . . 1 . . . . . . 1 . . . . 1 . . . . 1 . . . 1 . . . Weapon 3 | 1 1 . . . . . 1 . . . . . . . . . . . . . . . . . . . . . . . . . . . . . Parts Attached 379 | 7 5 2 27 4 21 2 18 27 7 9 . 16 22 3 5 5 21 4 17 6 5 . 11 11 . . 7 2 9 41 10 7 3 4 20 21 Power 29 | 1 1 1 3 1 3 . 1 7 1 . . 1 . . . . 2 . 2 . 1 . . . . . 1 . . . . 1 . . . 2 Engine 10 | 1 1 . 3 1 1 . . 3 . . . . . . . . . . . . . . . . . . . . . . . . . . . . Core 6 | . . 1 . . 1 . . 2 1 . . . . . . . . . 1 . . . . . . . . . . . . . . . . . Reactor 13 | . . . . . 1 . 1 2 . . . 1 . . . . 2 . 1 . 1 . . . . . 1 . . . . 1 . . . 2 Propulsion 49 | 2 . . 5 . 2 . 1 6 2 . . . 3 . . . 3 . 2 . . . 1 . . . . . 3 10 3 . . . 2 4 Treads 7 | 2 . . 4 . . . . . 1 . . . . . . . . . . . . . . . . . . . . . . . . . . . Leg 6 | . . . . . . . . . . . . . 1 . . . . . . . . . . . . . . . . 3 . . . . . 2 Wheel . | . . . . . . . . . . . . . . . . . . . . . . . . . . . . . . . . . . . . . Hover 35 | . . . . . 2 . 1 6 1 . . . 2 . . . 3 . 2 . . . 1 . . . . . 3 7 3 . . . 2 2 Flight 1 | . . . 1 . . . . . . . . . . . . . . . . . . . . . . . . . . . . . . . . . Utility 227 | 2 3 . 10 1 10 2 14 11 4 8 . 15 18 3 5 2 12 4 9 6 2 . 8 8 . . 4 . 4 19 5 4 3 4 14 13 Device 158 | 1 2 . 2 . 6 . 6 7 2 4 . 11 14 2 2 2 10 4 5 4 . . 6 6 . . 4 . 3 14 5 4 3 3 13 13 Storage 3 | . . . . . . . . . . . . . . . . . 1 . 1 1 . . . . . . . . . . . . . . . . Processor 16 | 1 1 . 1 1 2 1 1 1 . . . 1 1 . 1 . . . . . . . . 1 . . . . 1 1 . . . 1 . . Hackware 8 | . . . 1 . . 1 3 . . . . . . . . . . . . . . . 2 . . . . . . 1 . . . . . . Protection 42 | . . . 6 . 2 . 4 3 2 4 . 3 3 1 2 . 1 . 3 1 2 . . 1 . . . . . 3 . . . . 1 . Artifact . | . . . . . . . . . . . . . . . . . . . . . . . . . . . . . . . . . . . . . Weapon 74 | 2 1 1 9 2 6 . 2 3 . 1 . . 1 . . 3 4 . 4 . 2 . 2 3 . . 2 2 2 12 2 2 . . 4 2 Energy Gun 6 | . . . 3 . 1 . . . . . . . . . . . . . . . . . . . . . . 1 . 1 . . . . . . Energy Cannon 3 | . . . . . . . . . . . . . . . . . . . . . . . . . . . . . . 2 . 1 . . . . Ballistic Gun 18 | 2 . . 3 1 3 . . . . . . . . . . . 1 . . . 1 . 2 . . . 1 . . . . . . . 2 2 Ballistic Cannon . | . . . . . . . . . . . . . . . . . . . . . . . . . . . . . . . . . . . . . Launcher 7 | . 1 . 1 1 1 . . . . . . . . . . 1 2 . . . . . . . . . . . . . . . . . . . Special Weapon 1 | . . . . . . . . . . . . . . . . . . . . . . . . . . . . . . . 1 . . . . . Impact Weapon 18 | . . 1 2 . 1 . . 1 . . . . . . . . 1 . 2 . 1 . . 1 . . . . 1 3 1 1 . . 2 . Slashing Weapon 7 | . . . . . . . 2 2 . 1 . . . . . 1 . . 1 . . . . . . . . . . . . . . . . . Piercing Weapon 14 | . . . . . . . . . . . . . 1 . . 1 . . 1 . . . . 2 . . 1 1 1 6 . . . . . . Special Melee Weapon . | . . . . . . . . . . . . . . . . . . . . . . . . . . . . . . . . . . . . . Unidentified Prototypes 65 | . . . 2 . 9 . . . 1 . . . 2 1 . 2 5 . 4 1 2 . . . . . 2 1 1 15 3 3 1 1 5 4 Parts Lost 19 | . . . . . . . 1 . . . . . . . . . . . . . . . 1 . . . . . . . . 1 . . . 16 Power 2 | . . . . . . . . . . . . . . . . . . . . . . . . . . . . . . . . . . . . 2 Propulsion 3 | . . . . . . . . . . . . . . . . . . . . . . . . . . . . . . . . . . . . 3 Utility 11 | . . . . . . . 1 . . . . . . . . . . . . . . . 1 . . . . . . . . 1 . . . 8 Weapon 3 | . . . . . . . . . . . . . . . . . . . . . . . . . . . . . . . . . . . . 3 Highest Loss Streak 3 | . . . . . . . 1 . . . . . . . . . . . . . . . 1 . . . . . . . . 1 . . . 3 Average Slot Usage (%) 92 | . 99 99 88 92 91 92 91 94 94 94 95 94 94 94 94 94 92 90 92 95 94 95 94 94 95 95 95 95 96 94 88 88 87 88 87 78 Engine 2 | . 13 4 10 15 12 . . 3 3 . . . . . . . . . . . . . . . . . . . . . . . . . . . Core 1 | . . 6 . . . 6 5 3 1 5 5 1 . . . . . . . . . . . . . . . . . . . . . . . . Reactor 7 | . . . . . 1 6 5 6 10 10 10 13 13 13 13 13 12 9 8 8 8 8 8 8 8 8 8 8 8 8 8 8 7 7 7 6 Treads 4 | . 26 22 17 15 13 . . . . . . . . . . . . . . . . . . . . . . . . . . . . . . . Hover 12 | . . . . . 1 13 11 18 19 20 20 19 18 18 18 18 18 18 17 17 17 17 17 16 16 16 16 16 16 15 16 16 15 15 14 12 Device 25 | . 24 22 14 19 15 26 20 26 25 25 25 25 27 27 27 27 25 27 28 30 30 30 27 29 33 33 33 33 32 33 28 31 33 31 34 30 Storage 1 | . . . . . . . . . . . . . . . . . 1 4 4 4 4 4 4 4 4 4 4 4 4 3 . . . . . . Processor 8 | . 4 11 1 3 9 6 6 5 10 10 10 9 10 13 13 13 12 9 8 8 8 8 8 8 8 8 8 8 11 9 12 8 7 9 7 5 Hackware 1 | . . . 4 . . 5 9 4 . . . . . . . . . . . . . . 1 3 . . . . . . . . . . . . Protection 8 | . . . 12 15 11 6 8 5 9 9 10 9 8 8 8 9 8 9 8 8 7 8 8 8 8 8 8 8 8 8 8 8 7 7 7 6 Energy Gun 1 | . . . 7 7 5 6 . . . . . . . . . . . . . . . . . . . . . . . . . . . . . . Ballistic Gun 3 | . 26 15 5 14 11 6 5 1 . . . . . . . . 2 4 2 . . . . . . . . . . . . . . . . . Impact Weapon 4 | . . 6 11 . 2 6 5 9 10 7 5 4 4 4 4 4 . . 2 4 4 4 3 2 . . . . 2 3 4 4 3 3 2 1 Slashing Weapon 2 | . . . . . . . 6 6 5 7 10 9 8 4 4 4 4 4 2 4 4 4 4 . . . . . . . . . . . . . Piercing Weapon 4 | . . . . . . . . . . . . . . 4 4 3 4 4 6 8 8 8 8 12 16 16 15 16 13 11 12 12 11 11 11 9 Naked Turns . | . . . . . . . . . . . . . . . . . . . . . . . . . . . . . . . . . . . . . Heaviest Build 139 | 7 13 15 51 53 56 56 68 84 87 87 86 88 89 89 87 87 101 101 94 105 115 115 115 121 121 121 121 119 121 138 131 134 138 137 138 139 Greatest Support 138 | 40 40 45 51 51 63 63 63 106 106 106 106 106 109 109 109 109 133 123 123 123 123 123 123 123 123 123 123 123 127 138 138 138 138 138 138 138 Greatest Overweight (x) 10 | . . . 3 1 1 . 1 1 . . . . . . . . . . . . . . 1 . . . . . . 2 1 . 10 10 1 2 Average Overweight (x) . | . . . . . . . . . . . . . . . . . . . . . . . . . . . . . . . . . . . . . Largest Inventory Capacity 8 | 2 2 3 4 4 4 4 4 4 5 5 5 5 6 6 6 6 6 6 6 6 6 6 6 6 6 6 6 6 6 7 7 7 7 7 8 8 Average Capacity 5 | 1 2 2 3 4 4 4 4 4 4 5 5 5 5 6 6 6 6 6 6 6 6 6 6 6 6 6 6 6 6 6 7 7 7 7 7 8 Most Carried 8 | . 2 3 4 4 4 4 4 4 5 5 5 5 6 6 6 6 6 6 6 6 6 6 6 6 6 6 6 6 6 7 7 7 7 7 8 8 Average Carried 4 | . 1 2 3 4 2 3 3 3 4 4 5 4 5 5 5 5 5 6 5 6 6 6 5 5 6 5 5 6 5 6 7 6 6 6 6 6 Final Capacity 8 | 2 2 3 4 4 4 4 4 4 5 5 5 5 6 6 6 6 6 6 6 6 6 6 6 6 6 6 6 6 6 7 7 7 7 7 8 8 Final Carried 7 | . 2 3 4 4 4 3 4 4 5 5 5 5 6 6 6 6 6 6 6 6 6 6 6 6 6 6 6 6 6 7 7 7 6 6 7 6 Class Distribution -------------------- 15% | Machinist-Sprinter 11% | Hacker-Mutant 11% | Mutant 9% | Machinist-Mutant 8% | Scavenger-Mutant 7% | Scavenger-Gladiator 7% | Tank 7% | Generator-Sprinter 5% | Generator-Mutant 5% | Hacker-Gladiator 4% | Generator-Ninja Dominant Class ---------------- Mutant | -10/Materials Mutant | -10/Mines Hacker-Mutant | -9/Materials Tank | -9/Mines Mutant | -9/Exiles Scavenger-Mutant | -8/Mines Hacker-Mutant | -8/Materials Hacker-Mutant | -7/Factory Machinist-Gladiator | -7/Lower Caves Scavenger-Gladiator | -7/Lower Caves Scavenger-Gladiator | -7/Data Miner Scavenger-Gladiator | -6/Proximity Caves Hacker-Gladiator | -6/Factory Machinist-Mutant | -6/Lower Caves Machinist-Mutant | -6/Lower Caves Machinist-Mutant | -6/Zion Scavenger-Mutant | -6/Deep Caves Generator-Mutant | -5/Proximity Caves Generator-Sprinter | -5/Factory Generator-Sprinter | -5/Extension Generator-Mutant | -5/Cetus Generator-Mutant | -5/Archives Hacker-Mutant | -5/Hub_04(d) Hacker-Sprinter | -4/Factory Machinist-Sprinter | -4/Upper Caves Machinist-Sprinter | -4/Upper Caves Machinist-Sprinter | -4/Zhirov Machinist-Sprinter | -3/Proximity Caves Machinist-Sprinter | -3/Research Machinist-Sprinter | -3/Testing Machinist-Sprinter | -2/Research Machinist-Sprinter | -2/Quarantine Machinist-Sprinter | -2/Section 7 Generator-Ninja | -1/Access Generator-Ninja | -1/Command Generator-Ninja | -1/Access_0 Resources | -11 -10 -10 -9 -9 -9 -8 -8 -7 -7 -7 -7 -6 -6 -6 -6 -6 -6 -5 -5 -5 -5 -5 -5 -4 -4 -4 -4 -3 -3 -3 -2 -2 -2 -1 -1 -1 ----------- Run | Scr Mat Min Mat Min Exi Min Mat Fac Low Low Dat Pro Fac Low Low Zio Dee Pro Fac Ext Cet Arc Hub Fac Upp Upp Zhi Pro Res Tes Res Qua Sec Acc Com Ac0 Matter Collected 9072 | 290 264 72 458 223 920 110 860 352 70 850 . 574 896 35 210 50 378 15 331 50 70 . 117 110 . . 80 20 590 410 100 65 70 40 215 177 Remotely . | . . . . . . . . . . . . . . . . . . . . . . . . . . . . . . . . . . . . . Salvage Created 36282 | 97 367 169 1385 427 607 111 1742 1229 723 841 . 210 1927 985 765 40 740 . 2962 1290 307 117 1525 1774 931 673 111 538 1967 1594 1979 843 1861 1971 2005 1469 Parts 2021 | 6 27 10 104 25 72 17 123 64 21 37 . 16 107 41 47 8 48 16 186 61 16 8 86 86 28 22 3 38 128 81 72 43 77 128 55 114 Haulers Intercepted 30 | . 1 . 6 . . . 4 . . . . . 1 1 . . . . 3 . . . 4 . . . . . 2 1 1 1 1 4 . . Recyclers Shooed 2 | . . . 1 . . . . . . . . . 1 . . . . . . . . . . . . . . . . . . . . . . . Parts Field Recycled . | . . . . . . . . . . . . . . . . . . . . . . . . . . . . . . . . . . . . . Retrieved Matter . | . . . . . . . . . . . . . . . . . . . . . . . . . . . . . . . . . . . . . Parts Self-Destructed 270 | . . . . . . . . . 21 38 . 26 . 39 43 . . 16 . . . . . . 26 22 2 37 . . . . . . . . Prevented 5 | . . . . . . . . . . 1 . . . 2 2 . . . . . . . . . . . . . . . . . . . . . Kills | -11 -10 -10 -9 -9 -9 -8 -8 -7 -7 -7 -7 -6 -6 -6 -6 -6 -6 -5 -5 -5 -5 -5 -5 -4 -4 -4 -4 -3 -3 -3 -2 -2 -2 -1 -1 -1 ------- Run | Scr Mat Min Mat Min Exi Min Mat Fac Low Low Dat Pro Fac Low Low Zio Dee Pro Fac Ext Cet Arc Hub Fac Upp Upp Zhi Pro Res Tes Res Qua Sec Acc Com Ac0 Combat Hostiles Destroyed 557 | . 14 5 26 10 6 7 31 26 15 15 . 8 31 14 17 2 16 4 49 18 6 2 13 31 6 7 . 10 34 22 20 8 29 25 9 21 Melee 430 | . . . 3 . . . 3 20 12 15 . 7 31 13 15 2 7 4 46 17 6 2 12 31 6 7 . 10 32 20 20 8 28 25 9 19 Guns 74 | . 12 2 15 6 1 5 27 1 . . . . . . . . 2 . 2 . . . . . . . . . . . . . . . . 1 AOE 31 | . 2 3 8 4 5 2 . . . . . . . . . . 6 . . . . . 1 . . . . . . . . . . . . . Classes Destroyed 26 | 2 3 2 4 . 3 . 1 1 1 1 . . . . . 1 2 . 1 . . . . 1 . . . . . 3 . . . . . . Worker 24 | . . 1 1 . . . 3 3 . . . . 2 . . . . . 3 . . . 9 1 . . . . 1 . . . . . . . Builder 7 | . . 1 1 . . . 1 1 . . . . . . . . . . . 1 . . 1 . . . . . . . . . . 1 . . Tunneler 9 | 1 . 1 2 2 . 1 . . . . . . . . . . . . . . . . 2 . . . . . . . . . . . . . Hauler 30 | . 1 . 6 . . . 4 . . . . . 1 1 . . . . 3 . . . 4 . . . . . 2 1 1 1 1 4 . . Recycler 13 | 1 . . 3 . . . 1 4 . . . . 1 . . . . . 1 . . . 1 . . . . . . . . 1 . . . . Operator 19 | . . . 1 . . . 2 2 . . . . 2 . . . . . 4 1 . . . 2 . . . . . . 1 1 1 2 . . Turret 1 | . . . . . 1 . . . . . . . . . . . . . . . . . . . . . . . . . . . . . . . Watcher 43 | . . . 3 . . . . 2 . . . . 2 . . . . . 6 1 . . 3 . . . . . 3 2 4 3 4 9 1 . Swarmer 101 | . 3 3 12 3 . 7 5 2 7 3 . 6 3 . 2 . . . 8 . . . 3 5 . . . 2 8 4 . . 7 8 . . Saboteur 1 | . . . . . . . . . . . . . . . . . . . 1 . . . . . . . . . . . . . . . . . Grunt 193 | . 11 2 5 5 . . 12 11 3 9 . 1 12 8 3 . . . 24 7 . . 6 15 3 1 . 5 12 9 9 7 10 3 . . Brawler 16 | . . . 1 2 . . 1 2 . . . . 1 2 . . . . 2 . 1 . . 2 . . . . . . 2 . . . . . Duelist 12 | . . . . . . . . . 2 1 . . 1 1 4 . . . . 1 . . . 1 1 . . . . . . . . . . . Protector 2 | . . . . . . . . . . . . . . . . . . . . . . . . 1 . . . . 1 . . . . . . . Researcher 5 | . . . . . . . . . . . . . . . . . . . . . . . . . . . . . . 3 . . 2 . . . Sentry 85 | . . . 9 . . . 10 6 1 . . . 8 1 1 . . . 7 6 . 2 4 5 . 1 . 1 6 3 5 . 4 3 2 . Hunter 42 | . . . . . . . 3 2 2 . . . 4 . 6 . . 2 3 2 . . . . . 4 . . 2 . 2 . . 4 6 . Programmer 31 | . . . . . . . . 3 . 1 . . 2 1 1 . . 2 3 . . . . 2 2 1 . 2 2 3 1 1 2 2 . . Behemoth 11 | . . . . . . . . . . 1 . 1 . 1 . . . . 1 2 . . . . . . . . 3 . 1 . . 1 . . Cetus Guard 5 | . . . . . . . . . . . . . . . . . . . . . 5 . . . . . . . . . . . . . . . S7 Guard 2 | . . . . . . . . . . . . . . . . . . . . . . . . . . . . . . . . . 2 . . . Enhanced Grunt 11 | . . . . . . . . . . . . . . . . . . . . . . . . . . . . . . . . . . . . 11 Enhanced Hunter 8 | . . . . . . . . . . . . . . . . . . . . . . . . . . . . . . . . . . . . 8 Tracker 4 | . . . . . . . . . . . . . . . . . . . . . . . . . . . . . . . . . 2 2 . . Combat Programmer 4 | . . . . . . . . . . . . . . . . . . . . . . . . . . . . . . . . . 2 2 . . Striker 2 | . . . . . . . . . . . . . . . . . . . . . . . . . . . . . . 2 . . . . . . Alpha 7 1 | . . . . . . . . . . . . . . . . . . . . . . . . . . . . . . 1 . . . . . . Zionite 3 | . . . . . 3 . . . . . . . . . . . . . . . . . . . . . . . . . . . . . . . Z-Light 10 | . . . . . . . . . . . . . . . . . 10 . . . . . . . . . . . . . . . . . . . Decomposer 1 | . . . . . . . . . . . . . . . 1 . . . . . . . . . . . . . . . . . . . . . Assembled 10 | . . . . . 7 . . . . . . . . . . . 3 . . . . . . . . . . . . . . . . . . . Golem 2 | . . . . . . . . . . . . . . . . . 2 . . . . . . . . . . . . . . . . . . . Wasp 1 | . . . . . . . . . . . . . . . . 1 . . . . . . . . . . . . . . . . . . . . Thug 1 | . . . . . . . . . . . . . . . . 1 . . . . . . . . . . . . . . . . . . . . Mutant 1 | . . . . . . . . . . . . . . . . 1 . . . . . . . . . . . . . . . . . . . . Best Kill Streak 14 | 2 5 3 5 2 5 4 7 5 4 4 . 4 5 5 8 2 5 3 8 5 4 2 10 9 4 2 . 5 8 7 5 6 14 11 8 6 Combat Bots Only 13 | . 5 3 3 2 5 4 6 5 4 4 . 4 5 5 8 2 5 3 6 4 4 2 4 8 4 2 . 5 8 7 5 5 13 6 4 6 Max Kills in Single Turn 6 | 1 2 3 4 2 3 2 2 1 2 1 . 1 1 1 1 1 4 1 1 1 1 1 6 2 1 1 . 1 1 1 1 1 1 1 1 1 Gunslinging . | . . . . . . . . . . . . . . . . . . . . . . . . . . . . . . . . . . . . . Exploded 4 | . 2 3 3 2 3 2 . . . . . . . . . . 4 . . . . . 1 . . . . . . . . . . . . . Melee 2 | . . . 1 . . . 1 1 2 1 . 1 1 1 1 1 1 1 1 1 1 1 1 2 1 1 . 1 1 1 1 1 1 1 1 1 Uniques/NPCs Destroyed 8 | . . . . . 4 . . . . . . . . . . . 1 . . . . . . . . . . . . . . . . . 1 2 8R-AWN (-9/Exiles) EX-BIN (-9/Exiles) EX-HEX (-9/Exiles) EX-DEC (-9/Exiles) Z-Imprinter (-6/Deep Caves) MAIN.C Shell (-1/Command) A8 (-1/Access_0) A6 (-1/Access_0) Combat | -11 -10 -10 -9 -9 -9 -8 -8 -7 -7 -7 -7 -6 -6 -6 -6 -6 -6 -5 -5 -5 -5 -5 -5 -4 -4 -4 -4 -3 -3 -3 -2 -2 -2 -1 -1 -1 -------- Run | Scr Mat Min Mat Min Exi Min Mat Fac Low Low Dat Pro Fac Low Low Zio Dee Pro Fac Ext Cet Arc Hub Fac Upp Upp Zhi Pro Res Tes Res Qua Sec Acc Com Ac0 Damage Taken 30641 | . 570 229 974 183 901 110 978 1129 648 382 . 675 1129 566 634 24 1225 179 1511 797 245 11 1424 1377 144 187 . 335 1210 350 863 185 2148 1885 708 6725 Core 19077 | . 450 188 651 120 551 75 671 686 404 236 . 418 650 356 380 12 808 112 928 504 141 4 913 864 98 109 . 187 770 208 498 109 1179 1123 346 4328 Absorbed by Shields 4949 | . . . 97 71 335 45 356 412 240 16 . 196 376 120 88 12 160 32 . 206 177 6 . 288 30 . . 144 330 96 . 12 234 516 180 174 Redirected to Core 16653 | . 381 140 513 111 458 63 521 516 357 222 . 408 619 341 366 12 724 99 849 493 130 4 826 786 98 88 . 173 653 184 424 94 1121 1034 325 3520 Core Remaining (%) 82 | 100 . 71 . . . 28 100 . . . . 85 . . . . . 100 . . . . 44 . . . . 100 . 100 . . 100 . . . Volleys Fired 526 | 5 52 10 72 36 140 15 115 12 . . . . . . . . 35 . 20 . . . 2 . . . . . . . . . . . . 12 Largest 3 | 2 2 2 3 3 3 2 2 1 . . . . . . . . 1 . 1 . . . 1 . . . . . . . . . . . . 1 Hottest 91 | 40 40 40 91 91 91 75 75 30 . . . . . . . . 39 . 30 . . . 30 . . . . . . . . . . . . 50 Shots Fired 769 | 10 103 18 124 77 202 18 136 12 . . . . . . . . 35 . 20 . . . 2 . . . . . . . . . . . . 12 Gun 740 | 10 102 16 122 74 197 18 136 12 . . . . . . . . 19 . 20 . . . 2 . . . . . . . . . . . . 12 Cannon . | . . . . . . . . . . . . . . . . . . . . . . . . . . . . . . . . . . . . . Launcher 29 | . 1 2 2 3 5 . . . . . . . . . . . 16 . . . . . . . . . . . . . . . . . . . Special . | . . . . . . . . . . . . . . . . . . . . . . . . . . . . . . . . . . . . . Kinetic 615 | 10 102 16 56 50 186 15 115 12 . . . . . . . . 19 . 20 . . . 2 . . . . . . . . . . . . 12 Thermal . | . . . . . . . . . . . . . . . . . . . . . . . . . . . . . . . . . . . . . Explosive 13 | . 1 2 2 3 5 . . . . . . . . . . . . . . . . . . . . . . . . . . . . . . . Electromagnetic 141 | . . . 66 24 11 3 21 . . . . . . . . . 16 . . . . . . . . . . . . . . . . . . . Robot Hit Streak 27 | 4 15 6 26 14 27 3 11 2 . . . . . . . . 11 . 5 . . . . . . . . . . . . . . . . 13 Robot Miss Streak 4 | 1 2 1 4 1 2 3 4 4 . . . . . . . . 2 . 3 . . . . . . . . . . . . . . . . 4 Penetration Max 2 | . . . . . 1 . 2 . . . . . . . . . . . 1 . . . . . . . . . . . . . . . . 1 Secondary Targets 4 | . . . 2 . . . 2 . . . . . . . . . . . . . . . . . . . . . . . . . . . . . Max Gunslinging Chain 1 | . . . 1 . . . 1 . . . . . . . . . . . . . . . . . . . . . . . . . . . . . Shots Hit Robots 2230 | 6 80 17 115 51 171 15 117 111 40 37 . 26 89 44 43 5 52 6 120 58 25 4 50 94 22 21 5 20 94 75 64 27 109 123 87 207 Core Hits 1152 | 3 32 7 53 23 55 7 55 36 14 19 . 9 45 24 23 3 36 5 85 26 13 2 41 61 16 13 3 13 54 36 36 22 60 63 41 118 Critical Hits 201 | . 2 . 1 . 9 2 45 4 2 1 . . 4 2 2 2 11 1 12 4 2 . 1 8 2 3 . 1 11 11 4 4 4 12 6 28 Critical Kills 88 | . 1 . 1 . 4 2 20 3 2 . . . 3 . 2 2 3 . 6 2 2 . 1 4 1 2 . . 4 5 3 3 3 4 1 4 Critical Parts Destroyed 78 | . 1 . . . 5 . 25 1 . 1 . . 1 2 . . 7 1 6 1 . . . 3 1 1 . 1 5 3 1 . . 5 . 7 Melee Attacks 2345 | . . 3 25 . . 9 41 144 52 55 . 37 126 64 61 18 41 8 147 67 27 6 64 118 31 28 8 28 153 125 103 53 164 178 133 228 Impact 511 | . . 3 25 . . 9 15 73 25 20 . 7 32 14 11 9 1 . 15 12 5 1 5 10 . . . . 20 23 25 10 30 32 31 48 Slashing 343 | . . . . . . . 26 71 27 35 . 30 93 13 9 2 8 . 9 6 3 1 9 1 . . . . . . . . . . . . Piercing 1491 | . . . . . . . . . . . . . 1 37 41 7 32 8 123 49 19 4 50 107 31 28 8 28 133 102 78 43 134 146 102 180 Sneak Attacks 127 | . . 3 5 . . 3 9 12 1 6 . . 8 1 3 1 . . 7 5 . . 12 2 1 . . 2 11 8 2 4 8 12 1 . Combat Hostiles 49 | . . . . . . . 2 2 . 6 . . 3 . 1 . . . 1 4 . . 2 1 1 . . 2 8 3 1 1 5 5 1 . Follow-up Attacks 617 | . . . 1 . . . 8 42 17 14 . 11 28 15 11 1 7 . 15 16 11 1 13 40 9 7 1 8 36 33 31 9 50 61 40 81 Damage Inflicted 113681 | 62 911 544 2670 964 2872 685 3805 5589 1885 2841 . 1226 5135 2460 2112 244 2701 308 6548 3465 1054 191 4255 5114 2056 1500 774 1308 6654 5977 4281 2149 6967 8851 6451 9072 Guns 8423 | 62 782 126 1389 656 2403 193 2090 74 . . . . . . . . 267 . 244 . . . . . . . . . . . . . . . . 137 Cannons . | . . . . . . . . . . . . . . . . . . . . . . . . . . . . . . . . . . . . . Explosions 3528 | . 129 173 441 308 469 82 188 . . . . . . . . . 896 . . . . . 709 133 . . . . . . . . . . . . Melee 101642 | . . 245 836 . . 410 1527 5515 1885 2841 . 1226 5135 2460 2112 244 1538 308 6304 3465 1054 191 3462 4981 2056 1500 774 1308 6654 5977 4281 2149 6967 8851 6451 8935 Ramming 88 | . . . 4 . . . . . . . . . . . . . . . . . . . 84 . . . . . . . . . . . . . Kinetic 6726 | 62 782 126 328 365 2393 146 1802 74 . . . . . . . . 267 . 244 . . . . . . . . . . . . . . . . 137 Thermal 839 | . . . 218 83 . 82 94 . . . . . . . . . 229 . . . . . . 133 . . . . . . . . . . . . Explosive 1313 | . 129 173 223 225 469 . 94 . . . . . . . . . . . . . . . . . . . . . . . . . . . . . Electromagnetic 3073 | . . . 1061 291 10 47 288 . . . . . . . . . 667 . . . . . 709 . . . . . . . . . . . . . Impact 14732 | . . 245 836 . . 410 429 1549 516 501 . 205 612 233 211 26 28 . 247 440 99 . 65 202 . . . . 474 635 848 351 906 1254 1860 1550 Slashing 15952 | . . . . . . . 1098 3966 1369 2340 . 1021 4384 412 274 . 239 . 118 185 146 . 348 52 . . . . . . . . . . . . Piercing 70958 | . . . . . . . . . . . . . 139 1815 1627 218 1271 308 5939 2840 809 191 3049 4727 2056 1500 774 1308 6180 5342 3433 1798 6061 7597 4591 7385 Highest Corruption 7 | . . . . . . . . . . . . 1 4 3 . . . 1 2 . . . 1 . . . . . 1 2 1 . 7 7 6 . Average Corruption 2 | . . . . . . . . . . . . 1 1 2 . . . 1 1 . . . 1 . . . . . 1 1 1 . 6 4 3 . Corruption Purged 24 | . . . . . . . . . . . . 1 3 3 . . . 1 2 . . . 2 . . . . . 1 2 1 . . 1 7 . Effects 42 | . . . . . . . . . . . . 2 10 1 . . . 1 . . . . 4 . . . . . . 1 . . 9 9 5 . Message Errors 12 | . . . . . . . . . . . . 1 4 . . . . . . . . . 1 . . . . . . . . . 3 2 1 . Matter Fused 4 | . . . . . . . . . . . . . 1 . . . . . . . . . . . . . . . . . . . . . 3 . Energy Discharges 9 | . . . . . . . . . . . . . 2 1 . . . 1 . . . . 1 . . . . . . . . . 1 2 1 . Data Loss (minor) 6 | . . . . . . . . . . . . 1 1 . . . . . . . . . 1 . . . . . . . . . 1 2 . . Targeting Errors 11 | . . . . . . . . . . . . . 2 . . . . . . . . . 1 . . . . . . 1 . . 4 3 . . Overload Shots . | . . . . . . . . . . . . . . . . . . . . . . . . . . . . . . . . . . . . . Overflow Damage 7909 | . . 145 333 22 8 265 261 813 105 603 . 61 740 48 109 . 216 . 414 92 . . 118 146 306 . 72 48 161 672 354 44 571 481 433 268 Projectiles 102 | . . . . . . . . . . . . . . . . . . . . . . . . . . . . . . . . . 102 . . . Explosions 63 | . . . . 22 8 . 16 . . . . . . . . . 17 . . . . . . . . . . . . . . . . . . . Melee 7744 | . . 145 333 . . 265 245 813 105 603 . 61 740 48 109 . 199 . 414 92 . . 118 146 306 . 72 48 161 672 354 44 469 481 433 268 Knockbacks 83 | . . 2 6 . . 2 1 3 5 2 . 1 4 1 2 . . . 1 1 . . . 2 . . . . 1 6 2 3 6 7 10 15 Impact 82 | . . 2 6 . . 2 1 3 5 2 . 1 4 1 2 . . . 1 1 . . . 2 . . . . 1 6 2 3 5 7 10 15 Kinetic . | . . . . . . . . . . . . . . . . . . . . . . . . . . . . . . . . . . . . . Secondary 1 | . . . . . . . . . . . . . . . . . . . . . . . . . . . . . . . . . 1 . . . Self-Inflicted Damage 718 | . 22 40 85 26 . 39 136 . . . . . . . . . 182 . . . . . 188 . . . . . . . . . . . . . Shots 23 | . 1 2 4 1 . 1 2 . . . . . . . . . 10 . . . . . 2 . . . . . . . . . . . . . Rammed 3 | . . . 1 . . . . . . . . . . . . . . . . . . . 2 . . . . . . . . . . . . . Targets Rammed 3 | . . . 1 . . . . . . . . . . . . . . . . . . . 2 . . . . . . . . . . . . . Kicked . | . . . . . . . . . . . . . . . . . . . . . . . . . . . . . . . . . . . . . Crushed . | . . . . . . . . . . . . . . . . . . . . . . . . . . . . . . . . . . . . . Highest Temperature 299 | . 6 . 299 . . . 18 10 . 2 . 20 1 12 . . 88 4 275 2 . . . 15 . . . . . 56 19 89 13 . . . Average Temperature 31 | . 4 . 55 . . . 5 9 . 2 . 10 1 12 . . 13 2 61 1 . . . 15 . . . . . 12 5 32 6 . . . Received Heat Transfer 4042 | . 267 108 269 80 . . 265 293 109 48 . 61 144 171 44 . 281 . 297 201 39 5 453 196 4 . . 44 196 49 126 25 48 18 53 148 Siege Activations . | . . . . . . . . . . . . . . . . . . . . . . . . . . . . . . . . . . . . . Robots Corrupted 4 | . . . 1 . . . 1 . . . . . . . . . 1 . . . . . 1 . . . . . . . . . . . . . Combat Hostiles 2 | . . . . . . . 1 . . . . . . . . . 1 . . . . . . . . . . . . . . . . . . . Parts Fried 72 | . . 6 15 . . 1 2 5 1 . . . . 1 . . 11 . . 3 . . 4 . . . . . 4 4 5 2 5 . . 3 Impact Corruptions 118 | . . 6 13 . . 11 3 10 5 5 . 2 1 1 2 . 1 . 1 3 . . 1 . . . . . 3 3 7 2 10 4 11 13 Robots Melted . | . . . . . . . . . . . . . . . . . . . . . . . . . . . . . . . . . . . . . Combat Hostiles . | . . . . . . . . . . . . . . . . . . . . . . . . . . . . . . . . . . . . . Parts Melted . | . . . . . . . . . . . . . . . . . . . . . . . . . . . . . . . . . . . . . Heat Transferred 850 | . . . 400 50 . . 100 . . . . . . . . . 200 . . . . . . 100 . . . . . . . . . . . . Parts Sabotaged 2 | . . . . . . . . . . . . . . . . . . . . . . . 2 . . . . . . . . . . . . . Parts Stolen . | . . . . . . . . . . . . . . . . . . . . . . . . . . . . . . . . . . . . . Parts Stripped . | . . . . . . . . . . . . . . . . . . . . . . . . . . . . . . . . . . . . . Power Chain Reactions 12 | . . . 4 1 . 1 2 . . . . . 1 . . . 1 . . . . . . 2 . . . . . . . . . . . . Missiles Intercepted . | . . . . . . . . . . . . . . . . . . . . . . . . . . . . . . . . . . . . . Alert | -11 -10 -10 -9 -9 -9 -8 -8 -7 -7 -7 -7 -6 -6 -6 -6 -6 -6 -5 -5 -5 -5 -5 -5 -4 -4 -4 -4 -3 -3 -3 -2 -2 -2 -1 -1 -1 ------- Run | Scr Mat Min Mat Min Exi Min Mat Fac Low Low Dat Pro Fac Low Low Zio Dee Pro Fac Ext Cet Arc Hub Fac Upp Upp Zhi Pro Res Tes Res Qua Sec Acc Com Ac0 Peak Influence 2229 | 10 208 150 345 235 . 202 417 907 . . . . 946 . . . . . 1470 767 299 285 2067 2010 . . . . 1239 1046 1557 552 1338 2229 1835 . Initial 1426 | . 6 18 3 130 . . . 126 . . . . 81 . . . . . . 568 193 103 99 1012 . . . . 155 696 588 540 99 796 1426 . Average 540 | 4 88 40 200 124 . 75 201 259 . . . . 583 . . . . . 783 515 188 253 1072 1435 . . . . 816 645 1085 188 807 1641 1757 . Maximum Alert Level 5 | . 1 . 1 1 . 1 2 3 . . . . 3 . . . . . 4 3 1 1 5 5 . . . . 4 3 4 2 4 5 5 . Low Security (%) 36 | 100 91 100 49 94 . 82 42 53 . . . . 5 . . . . . 16 . 46 14 3 . . . . . . . . 61 8 . 31 . Level 1 21 | . 8 . 50 5 . 17 55 29 . . . . 27 . . . . . 24 24 53 85 1 . . . . . 17 2 . 32 1 . . . Level 2 8 | . . . . . . . 1 6 . . . . 18 . . . . . 2 69 . . 15 . . . . . . 59 10 6 31 . . . Level 3 15 | . . . . . . . . 10 . . . . 48 . . . . . 9 5 . . 28 19 . . . . 70 37 32 . 27 18 . . Level 4 11 | . . . . . . . . . . . . . . . . . . . 47 . . . 41 41 . . . . 11 . 57 . 30 20 7 . Level 5 2 | . . . . . . . . . . . . . . . . . . . . . . . 9 39 . . . . . . . . . 6 4 . High Security 3 | . . . . . . . . . . . . . . . . . . . . . . . . . . . . . . . . . . 54 56 . Max Security . | . . . . . . . . . . . . . . . . . . . . . . . . . . . . . . . . . . . . . Squads Dispatched 120 | . 3 . 2 . . . 3 11 . 1 . . 13 . . . . . 14 2 . . 14 6 . . . . 5 4 3 2 8 14 15 . Investigation 46 | . 3 . 1 . . . 1 4 . 1 . . 9 . . . . . 7 2 . . 8 1 . . . . 3 1 2 2 1 . . . Extermination 11 | . . . . . . . . 3 . . . . 2 . . . . . 1 . . . . 2 . . . . 1 1 . . 1 . . . Reinforcement 19 | . . . 1 . . . 2 3 . . . . 2 . . . . . 3 . . . 1 . . . . . . 1 . . 3 2 1 . Assault 38 | . . . . . . . . 1 . . . . . . . . . . 3 . . . 5 3 . . . . 1 1 1 . . 9 14 . Garrison . | . . . . . . . . . . . . . . . . . . . . . . . . . . . . . . . . . . . . . Intercept 6 | . . . . . . . . . . . . . . . . . . . . . . . . . . . . . . . . . 3 3 . . Construction Impeded . | . . . . . . . . . . . . . . . . . . . . . . . . . . . . . . . . . . . . . Haulers Reinforced 3 | . . . . . . . . . . . . . . . . . . . 1 . . . . . . . . . . 1 . . . 1 . . Stealth | -11 -10 -10 -9 -9 -9 -8 -8 -7 -7 -7 -7 -6 -6 -6 -6 -6 -6 -5 -5 -5 -5 -5 -5 -4 -4 -4 -4 -3 -3 -3 -2 -2 -2 -1 -1 -1 --------- Run | Scr Mat Min Mat Min Exi Min Mat Fac Low Low Dat Pro Fac Low Low Zio Dee Pro Fac Ext Cet Arc Hub Fac Upp Upp Zhi Pro Res Tes Res Qua Sec Acc Com Ac0 Distress Signals 12 | . 2 . 2 . . . 1 . . . . . . . . . . . . . 2 . 2 . . . . . . . . . . 3 . . Communications Jammed 249 | . . . . . . . 25 8 . . . . 3 . . . . . 14 83 . . 21 45 . . . . 3 7 4 18 6 11 1 . Distress Signals 246 | . . . . . . . 25 8 . . . . 3 . . . . . 13 83 . . 21 45 . . . . 3 7 4 18 6 9 1 . Times Spotted 891 | . 26 2 47 12 37 7 63 37 16 17 . 15 49 14 15 2 19 4 65 29 12 4 61 52 5 8 . 15 47 24 34 15 44 42 11 41 Peak Tracking Total 21 | . 6 2 6 3 8 4 6 5 4 3 . 4 3 3 3 2 5 3 5 6 5 2 21 6 2 2 . 5 6 6 5 3 11 12 15 7 Tactical Retreats 64 | . . . 2 2 11 . 10 4 1 4 . 1 4 . . . 1 . 2 3 . . 3 1 . 1 . 4 2 . 2 . 4 2 . . Traps | -11 -10 -10 -9 -9 -9 -8 -8 -7 -7 -7 -7 -6 -6 -6 -6 -6 -6 -5 -5 -5 -5 -5 -5 -4 -4 -4 -4 -3 -3 -3 -2 -2 -2 -1 -1 -1 ------- Run | Scr Mat Min Mat Min Exi Min Mat Fac Low Low Dat Pro Fac Low Low Zio Dee Pro Fac Ext Cet Arc Hub Fac Upp Upp Zhi Pro Res Tes Res Qua Sec Acc Com Ac0 Traps Triggered 21 | . . . . . . . . 3 . . . . 2 . . . . . 5 2 . . 2 . . . . . 3 . 2 1 1 . . . Indirectly . | . . . . . . . . . . . . . . . . . . . . . . . . . . . . . . . . . . . . . Trap Hack Attempts . | . . . . . . . . . . . . . . . . . . . . . . . . . . . . . . . . . . . . . Triggered . | . . . . . . . . . . . . . . . . . . . . . . . . . . . . . . . . . . . . . Disarmed . | . . . . . . . . . . . . . . . . . . . . . . . . . . . . . . . . . . . . . Reprogrammed 6 | . . . . . . . . . . . . . . . . . . . . . . . . . . . . . . . . 6 . . . . Reused 6 | . . . . . 1 . . . . . . . . . . . . . . . . . . . . . . . . . . 5 . . . . Traps Extracted . | . . . . . . . . . . . . . . . . . . . . . . . . . . . . . . . . . . . . . Installed 3 | . . . . . 2 . . . . 1 . . . . . . . . . . . . . . . . . . . . . . . . . . Triggered 8 | . . . . . . . . . . 2 . . . . . . . . . . . . . . 1 . . . . . . 5 . . . . Machines | -11 -10 -10 -9 -9 -9 -8 -8 -7 -7 -7 -7 -6 -6 -6 -6 -6 -6 -5 -5 -5 -5 -5 -5 -4 -4 -4 -4 -3 -3 -3 -2 -2 -2 -1 -1 -1 ---------- Run | Scr Mat Min Mat Min Exi Min Mat Fac Low Low Dat Pro Fac Low Low Zio Dee Pro Fac Ext Cet Arc Hub Fac Upp Upp Zhi Pro Res Tes Res Qua Sec Acc Com Ac0 Machines Disabled 50 | . . . 2 1 11 1 4 1 . . . . 1 . . . 1 . . . . 2 10 2 . . . . . 6 . 2 3 2 1 . Max in Single Turn 7 | . . . 1 1 2 1 2 1 . . . . . . . . 1 . . . . . 7 2 . . . . . 1 . 1 1 . 1 . Garrison Access 22 | . . . . . . . 1 3 . . . . 3 . . . . . 4 . . . 1 1 . . . . 2 1 2 1 1 2 . . Network Hub 4 | . . . . . . . . . . . . . . . . . . . . . . . 4 . . . . . . . . . . . . . Machines Sabotaged 1 | . . . . . . . . . . . . . . . . . . . . . . . 1 . . . . . . . . . . . . . Garrisons Compromised . | . . . . . . . . . . . . . . . . . . . . . . . . . . . . . . . . . . . . . Overloaded Fab Kills 5 | . . . . . . . . . . . . . . . . . . . . . . . . 5 . . . . . . . . . . . . Fab Network Shutdowns 6 | . . . . . . . . 1 . . . . 1 . . . . . 1 . . . . 1 . . . . 1 1 . . . . . . Hacking | -11 -10 -10 -9 -9 -9 -8 -8 -7 -7 -7 -7 -6 -6 -6 -6 -6 -6 -5 -5 -5 -5 -5 -5 -4 -4 -4 -4 -3 -3 -3 -2 -2 -2 -1 -1 -1 --------- Run | Scr Mat Min Mat Min Exi Min Mat Fac Low Low Dat Pro Fac Low Low Zio Dee Pro Fac Ext Cet Arc Hub Fac Upp Upp Zhi Pro Res Tes Res Qua Sec Acc Com Ac0 Machines Accessed 235 | . 9 1 13 . 2 1 15 20 1 2 4 . 22 1 3 . . . 31 14 4 . 11 11 1 1 6 . 13 12 9 17 8 2 1 . Terminals 147 | . 7 1 11 . . 1 10 10 . 1 . . 12 . . . . . 20 14 4 . 10 6 . . . . 8 7 6 13 4 1 1 . Fabricators 17 | . . . . . . . . 4 . . . . 4 . . . . . 3 . . . . 3 . . . . 1 2 . . . . . . Repair Stations 8 | . . . . . . . 1 . . . . . 1 . . . . . 1 . . . . 1 . . . . 1 1 . 1 1 . . . Recycling Units 7 | . 2 . 1 . . . 1 1 . . . . . . . . . . 1 . . . . . . . . . . . 1 . . . . . Scanalyzers 15 | . . . 1 . . . 2 2 . . . . 2 . . . . . 2 . . . . . . . . . 1 1 . 2 2 . . . Garrison Access 21 | . . . . . . . 1 3 . . . . 3 . . . . . 4 . . . 1 1 . . . . 2 1 2 1 1 1 . . Total Hacks 1206 | . 34 4 57 . 2 6 75 62 1 9 28 . 105 1 8 . . . 156 84 16 . 65 79 1 1 17 . 89 91 50 119 32 8 6 . Successful 720 | . 23 3 44 . 2 3 62 41 1 4 28 . 58 1 8 . . . 103 42 10 . 38 44 1 1 17 . 42 44 21 64 12 1 2 . Failed 482 | . 11 1 12 . . 3 12 20 . 5 . . 47 . . . . . 53 41 6 . 27 35 . . . . 47 47 29 55 20 7 4 . Catastrophic 101 | . . . . . . 1 . 2 . 2 . . 8 . . . . . 9 12 1 . 3 8 . . . . 8 13 9 19 2 3 1 . Database Lockouts 4 | . . . 1 . . . 1 1 . . . . . . . . . . . 1 . . . . . . . . . . . . . . . . Manual 591 | . 17 4 28 . 1 6 39 17 . 7 . . 56 . . . . . 90 66 15 . 44 29 . . . . 22 46 20 65 12 6 1 . Terminals 942 | . 28 4 51 . . 6 57 31 . 8 . . 82 . . . . . 118 84 16 . 62 60 . . . . 67 76 44 111 25 6 6 . Fabricators 69 | . . . . . . . . 12 . . . . 10 . . . . . 12 . . . . 17 . . . . 6 12 . . . . . . Repair Stations 20 | . . . . . . . 6 . . . . . 2 . . . . . 1 . . . . 1 . . . . 6 1 . 2 1 . . . Recycling Units 14 | . 6 . 2 . . . 2 2 . . . . . . . . . . 1 . . . . . . . . . . . 1 . . . . . Scanalyzers 60 | . . . 4 . . . 9 10 . . . . 5 . . . . . 17 . . . . . . . . . 6 1 . 5 3 . . . Garrison Access 41 | . . . . . . . 1 7 . . . . 6 . . . . . 7 . . . 3 1 . . . . 4 1 5 1 3 2 . . Terminal Hacks 394 | . 11 3 26 . 2 3 25 13 1 3 28 . 27 1 8 . . . 47 24 4 . 20 22 1 1 17 . 23 24 14 38 6 . 2 . Record 30 | . . . . . 1 . . . . 1 11 . . . 6 . . . . . . . . . . . 7 . . . 1 3 . . . . Part Schematic 63 | . . 1 3 . . 2 1 2 . . 7 . 5 . . . . . 12 4 . . 2 4 . . 3 . 10 3 . 4 . . . . Robot Schematic 13 | . . 2 . . . . . . . . 7 . . . . . . . 2 . . . . 2 . . . . . . . . . . . . Robot Analysis 40 | . 3 . 4 . . 1 1 3 . 1 . . 3 . . . . . 11 3 . . . . . . 3 . 1 2 1 1 2 . . . Prototype ID Bank 46 | . 2 . 6 . . . 3 2 . . 3 . 3 . . . . . 4 4 . . 5 3 . . 4 . 2 1 2 1 1 . . . Open Door 10 | . . . . . . . . . 1 1 . . . 1 2 . . . . 1 1 . . . 1 1 . . . 1 . . . . . . Level Access Points 9 | . 1 . 1 . . . 1 . . . . . . . . . . . . . . . 1 . . . . . 1 1 1 1 . . 1 . Branch Access Points 8 | . 1 . 1 . . . 1 1 . . . . . . . . . . 1 . . . . 1 . . . . 1 . 1 . . . . . Emergency Access Points 5 | . . . . . . . 1 . . . . . 1 . . . . . . . . . 2 . . . . . . 1 . . . . . . Machine Index 8 | . . . 1 . . . 1 . . . . . 1 . . . . . . 1 . . . . . . . . . . 1 1 1 . 1 . Terminal Index 16 | . 1 . 1 . . . 1 1 . . . . 1 . . . . . 1 1 . . 2 1 . . . . 1 2 1 1 1 . . . Fabricator Index 4 | . . . . . . . . 1 . . . . 1 . . . . . . . . . . . . . . . . . . 1 1 . . . Repair Station Index 1 | . . . . . . . . . . . . . . . . . . . . . . . 1 . . . . . . . . . . . . . Scanalyzer Index 3 | . . . . . . . . . . . . . 1 . . . . . . . . . 1 . . . . . . . . 1 . . . . Garrison Index 4 | . . . . . . . . 1 . . . . . . . . . . . . . . 1 . . . . . . 1 . 1 . . . . Alert Level 11 | . . . . . . . 1 . . . . . 2 . . . . . . 2 . . . 1 . . . . . 3 . 2 . . . . Unreport Threat 50 | . . . 2 . . . 4 2 . . . . 5 . . . . . 6 6 3 . 2 4 . . . . 2 5 4 5 . . . . Locate Traps 23 | . 2 . 3 . . . 1 . . . . . 1 . . . . . 4 2 . . . 1 . . . . 1 2 1 5 . . . . Reprogram Traps 1 | . . . . . . . . . . . . . . . . . . . . . . . . . . . . . . . . 1 . . . . Patrol Status 1 | . . . . . . . . . . . . . . . . . . . . . . . . . . . . . . . . 1 . . . . Transport Status 2 | . . . . . . . . . . . . . . . . . . . . . . . . . . . . . . . . 2 . . . . Recall Investigation 3 | . . . . . . . . . . . . . . . . . . . 1 . . . . . . . . . 1 . . 1 . . . . Recall Reinforcements 3 | . . . . . . . 2 . . . . . . . . . . . . . . . . . . . . . . . . 1 . . . . Recall Assault 1 | . . . . . . . . . . . . . . . . . . . 1 . . . . . . . . . . . . . . . . . Hauler Manifests 6 | . . . 1 . . . 1 . . . . . . . . . . . 1 . . . . 1 . . . . 1 . . 1 . . . . Registered Components 4 | . . . . . . . 1 . . . . . 1 . . . . . 1 . . . . . . . . . . . . 1 . . . . Registered Prototypes 2 | . . . . . . . 1 . . . . . . . . . . . . . . . . 1 . . . . . . . . . . . . Zone Layout 26 | . 1 . 3 . . . 4 . . . . . 2 . . . . . 2 . . . 3 3 . . . . 2 2 1 3 . . . . EX-Prototype ID Bank 1 | . . . . . 1 . . . . . . . . . . . . . . . . . . . . . . . . . . . . . . . Fabricator Hacks 37 | . . . . . . . . 6 . . . . 4 . . . . . 10 . . . . 8 . . . . 2 7 . . . . . . Load Schematic 18 | . . . . . . . . 3 . . . . 2 . . . . . 4 . . . . 4 . . . . 1 4 . . . . . . Build 19 | . . . . . . . . 3 . . . . 2 . . . . . 6 . . . . 4 . . . . 1 3 . . . . . . Repair Station Hacks 9 | . . . . . . . 6 . . . . . . . . . . . . . . . . . . . . . 3 . . . . . . . Scan Component 5 | . . . . . . . 3 . . . . . . . . . . . . . . . . . . . . . 2 . . . . . . . Repair 4 | . . . . . . . 3 . . . . . . . . . . . . . . . . . . . . . 1 . . . . . . . Recycling Unit Hacks 8 | . 2 . 1 . . . 1 2 . . . . . . . . . . 1 . . . . . . . . . . . 1 . . . . . Report Inventory 7 | . 2 . 1 . . . 1 1 . . . . . . . . . . 1 . . . . . . . . . . . 1 . . . . . Retrieve Components 1 | . . . . . . . . 1 . . . . . . . . . . . . . . . . . . . . . . . . . . . . Scanalyzer 45 | . . . 4 . . . 7 9 . . . . 3 . . . . . 14 . . . . . . . . . 4 . . 2 2 . . . Insert Component 24 | . . . 2 . . . 3 4 . . . . 2 . . . . . 6 . . . . . . . . . 3 . . 2 2 . . . Analyze 21 | . . . 2 . . . 4 5 . . . . 1 . . . . . 8 . . . . . . . . . 1 . . . . . . . Garrison Access Hacks 17 | . . . . . . . 1 3 . . . . 2 . . . . . 3 . . . 1 1 . . . . 2 1 1 1 . 1 . . Seal Access 17 | . . . . . . . 1 3 . . . . 2 . . . . . 3 . . . 1 1 . . . . 2 1 1 1 . 1 . . Unauthorized Hacks 210 | . 10 . 13 . . . 22 8 . 1 . . 22 . . . . . 28 18 6 . 17 13 . . . . 8 12 5 23 4 . . . Terminals 178 | . 8 . 12 . . . 21 5 . 1 . . 17 . . . . . 24 18 6 . 15 9 . . . . 8 8 4 21 1 . . . Track 72 | . 4 . 5 . . . 9 2 . 1 . . 5 . . . . . 9 7 2 . 5 4 . . . . 3 5 2 9 . . . . Assimilate 11 | . . . 1 . . . 2 . . . . . 2 . . . . . 2 . . . . . . . . . 1 . . 3 . . . . Botnet 79 | . 3 . 5 . . . 9 3 . . . . 8 . . . . . 12 10 4 . 6 4 . . . . 3 2 1 8 1 . . . Detonate 1 | . . . . . . . . . . . . . . . . . . . . . . . . 1 . . . . . . . . . . . . Operators 12 | . 1 . 1 . . . 1 . . . . . 2 . . . . . 1 1 . . 1 . . . . . 1 1 1 1 . . . . Sabotage 3 | . . . . . . . . . . . . . . . . . . . . . . . 3 . . . . . . . . . . . . . Fabricators 14 | . . . . . . . . 3 . . . . 4 . . . . . 2 . . . . 3 . . . . . 2 . . . . . . Report 9 | . . . . . . . . 1 . . . . 2 . . . . . 2 . . . . 2 . . . . . 2 . . . . . . Overload 2 | . . . . . . . . . . . . . 1 . . . . . . . . . . 1 . . . . . . . . . . . . Download 3 | . . . . . . . . 2 . . . . 1 . . . . . . . . . . . . . . . . . . . . . . . Repair Stations 5 | . . . . . . . . . . . . . . . . . . . 1 . . . . 1 . . . . . 1 . 1 1 . . . Mechanics 5 | . . . . . . . . . . . . . . . . . . . 1 . . . . 1 . . . . . 1 . 1 1 . . . Recycling Units 4 | . 2 . 1 . . . 1 . . . . . . . . . . . . . . . . . . . . . . . . . . . . . Reject 1 | . . . . . . . 1 . . . . . . . . . . . . . . . . . . . . . . . . . . . . . Tunnel 3 | . 2 . 1 . . . . . . . . . . . . . . . . . . . . . . . . . . . . . . . . . Scanalyzers 3 | . . . . . . . . . . . . . . . . . . . . . . . . . . . . . . 1 . 1 1 . . . Researchers 3 | . . . . . . . . . . . . . . . . . . . . . . . . . . . . . . 1 . 1 1 . . . Garrison Access 6 | . . . . . . . . . . . . . 1 . . . . . 1 . . . 2 . . . . . . . 1 . 1 . . . Broadcast 1 | . . . . . . . . . . . . . . . . . . . . . . . 1 . . . . . . . . . . . . . Reprogram 1 | . . . . . . . . . . . . . . . . . . . . . . . 1 . . . . . . . . . . . . . Jam 4 | . . . . . . . . . . . . . 1 . . . . . 1 . . . . . . . . . . . 1 . 1 . . . Data Cores Recovered 12 | . . . 2 . . . . . . . . . . . . . . . 4 1 . . . 2 . . . . . . 1 1 1 . . . Used 8 | . . . 2 . . . . . . . . . . . . . . . 2 1 . . . 1 . . . . . . 1 1 . . . . Hacking Detections 173 | . 8 1 12 . . 1 10 14 . 1 . . 16 . . . . . 27 13 2 . 10 8 . . . . 10 9 9 15 5 1 1 . Full Trace Events 34 | . 1 1 2 . . 1 1 2 . 1 . . 6 . . . . . 6 2 . . 4 . . . . . 3 1 1 2 . . . . Feedback Events 5 | . . . . . . . . . . . . . 1 . . . . . . . . . 3 . . . . . 1 . . . . . . . Corruption 4 | . . . . . . . . . . . . . 1 . . . . . . . . . 2 . . . . . 1 . . . . . . . Hackware Fried 1 | . . . . . . . . . . . . . . . . . . . . . . . 1 . . . . . . . . . . . . . Feedback Blocked . | . . . . . . . . . . . . . . . . . . . . . . . . . . . . . . . . . . . . . Robot Schematics Acquired 15 | . . 2 . . . . . 1 . . 7 . 1 . . . . . 2 . . . . 2 . . . . . . . . . . . . Robots Built 1 | . . . . . . . . . . . . . . . . . . . . . . . . . . . . . . 1 . . . . . . Matter 351 | . . . . . . . . . . . . . . . . . . . . . . . . . . . . . . 351 . . . . . . Time 62 | . . . . . . . . . . . . . . . . . . . . . . . . . . . . . . 62 . . . . . . Total Robot Build Rating 7 | . . . . . . . . . . . . . . . . . . . . . . . . . . . . . . 7 . . . . . . Part Schematics Acquired 79 | . . 1 5 . . 2 3 7 . . 7 . 6 . . . . . 17 4 . . 2 4 . . 3 . 11 3 . 4 . . . . Parts Built 21 | . . . . . . . . 5 . . . . 2 . . . . . 5 . . . . 4 . . . . 2 3 . . . . . . Matter 4391 | . . . . . . . . 709 . . . . 702 . . . . . 976 . . . . 1031 . . . . 278 695 . . . . . . Time 1485 | . . . . . . . . 288 . . . . 271 . . . . . 498 . . . . 262 . . . . 46 120 . . . . . . Total Part Build Rating 148 | . . . . . . . . 29 . . . . 14 . . . . . 32 . . . . 28 . . . . 18 27 . . . . . . Parts Repaired 4 | . . . . . . . 3 . . . . . . . . . . . . . . . . . . . . . 1 . . . . . . . Time 297 | . . . . . . . 254 . . . . . . . . . . . . . . . . . . . . . 43 . . . . . . . Parts Recycled . | . . . . . . . . . . . . . . . . . . . . . . . . . . . . . . . . . . . . . Recycled Matter . | . . . . . . . . . . . . . . . . . . . . . . . . . . . . . . . . . . . . . Retrieved Matter . | . . . . . . . . . . . . . . . . . . . . . . . . . . . . . . . . . . . . . Retrieved Components 2 | . . . . . . . . 2 . . . . . . . . . . . . . . . . . . . . . . . . . . . . Parts Scanalyzed 17 | . . . 2 . . . 2 4 . . . . 1 . . . . . 6 . . . . . . . . . 2 . . . . . . . Part Schematics Acquired 15 | . . . 2 . . . 2 4 . . . . 1 . . . . . 5 . . . . . . . . . 1 . . . . . . . Parts Damaged 2 | . . . . . . . 2 . . . . . . . . . . . . . . . . . . . . . . . . . . . . . Bothacking | -11 -10 -10 -9 -9 -9 -8 -8 -7 -7 -7 -7 -6 -6 -6 -6 -6 -6 -5 -5 -5 -5 -5 -5 -4 -4 -4 -4 -3 -3 -3 -2 -2 -2 -1 -1 -1 ------------ Run | Scr Mat Min Mat Min Exi Min Mat Fac Low Low Dat Pro Fac Low Low Zio Dee Pro Fac Ext Cet Arc Hub Fac Upp Upp Zhi Pro Res Tes Res Qua Sec Acc Com Ac0 Used RIF Installer . | . . . . . . . . . . . . . . . . . . . . . . . . . . . . . . . . . . . . . Robots Hacked . | . . . . . . . . . . . . . . . . . . . . . . . . . . . . . . . . . . . . . Non-combat . | . . . . . . . . . . . . . . . . . . . . . . . . . . . . . . . . . . . . . Combat . | . . . . . . . . . . . . . . . . . . . . . . . . . . . . . . . . . . . . . Robot Hacks Applied . | . . . . . . . . . . . . . . . . . . . . . . . . . . . . . . . . . . . . . Relay Couplers Released . | . . . . . . . . . . . . . . . . . . . . . . . . . . . . . . . . . . . . . Robots Rewired 2 | . . . 1 . . . . . . . . . . . 1 . . . . . . . . . . . . . . . . . . . . . Allies Hacked . | . . . . . . . . . . . . . . . . . . . . . . . . . . . . . . . . . . . . . Hacks Repelled . | . . . . . . . . . . . . . . . . . . . . . . . . . . . . . . . . . . . . . Allies | -11 -10 -10 -9 -9 -9 -8 -8 -7 -7 -7 -7 -6 -6 -6 -6 -6 -6 -5 -5 -5 -5 -5 -5 -4 -4 -4 -4 -3 -3 -3 -2 -2 -2 -1 -1 -1 -------- Run | Scr Mat Min Mat Min Exi Min Mat Fac Low Low Dat Pro Fac Low Low Zio Dee Pro Fac Ext Cet Arc Hub Fac Upp Upp Zhi Pro Res Tes Res Qua Sec Acc Com Ac0 Total Allies 31 | . . 1 2 . . . . . . . . 1 . . 4 3 . . . 6 5 . 2 . . . . . . 1 . . . 3 3 . Largest Group 10 | . . 1 2 . . . . . . . . 1 1 . 4 5 . . . 5 10 10 7 . . . . . . 1 . . . 3 3 . Highest-Rated Group 750 | . . 31 25 . . . . . . . . 94 94 . 185 199 . . . 280 750 750 529 . . . . . . 32 . . . 368 366 . Highest-Rated Ally 156 | . . 31 15 . . . . . . . . 94 94 . 99 99 . . . 156 156 156 94 . . . . . . 32 . . . 131 131 . Total Orders 5 | . . . . . . . . . . . . 4 . . . . . . . . . . . . . . . . . 1 . . . . . . AID 1 | . . . . . . . . . . . . . . . . . . . . . . . . . . . . . . 1 . . . . . . EXPLORE 4 | . . . . . . . . . . . . 4 . . . . . . . . . . . . . . . . . . . . . . . . Ally Attacks 338 | . . . 20 . . . . . . . . 25 15 . . 5 . . . 40 38 34 122 . . . . . . . . . . 37 2 . Total Damage 11123 | . . . 420 . . . . . . . . 818 541 . . 176 . . . 1025 1076 965 4724 . . . . . . . . . . 1347 31 . Kills 79 | . . . 10 . . . . . . . . 7 1 . . 2 . . . 13 6 2 32 . . . . . . . . . . 6 . . Allies Corrupted . | . . . . . . . . . . . . . . . . . . . . . . . . . . . . . . . . . . . . . Allies Melted . | . . . . . . . . . . . . . . . . . . . . . . . . . . . . . . . . . . . . . Intel | -11 -10 -10 -9 -9 -9 -8 -8 -7 -7 -7 -7 -6 -6 -6 -6 -6 -6 -5 -5 -5 -5 -5 -5 -4 -4 -4 -4 -3 -3 -3 -2 -2 -2 -1 -1 -1 ------- Run | Scr Mat Min Mat Min Exi Min Mat Fac Low Low Dat Pro Fac Low Low Zio Dee Pro Fac Ext Cet Arc Hub Fac Upp Upp Zhi Pro Res Tes Res Qua Sec Acc Com Ac0 Robot Analysis Total 40 | . 3 . 4 . . 1 1 3 . 1 . . 3 . . . . . 11 3 . . . . . . 3 . 1 2 1 1 2 . . . Derelict Logs Recovered 21 | . . 2 . 2 . . . . 2 1 . 1 . 2 2 2 . 3 . . . . . . 2 2 . . . . . . . . . . Drone Launches 4 | . . . . . . . . . . . . 4 . . . . . . . . . . . . . . . . . . . . . . . . Drone Recoveries 2 | . . . . . . . . . . . . 2 . . . . . . . . . . . . . . . . . . . . . . . . Exploration | -11 -10 -10 -9 -9 -9 -8 -8 -7 -7 -7 -7 -6 -6 -6 -6 -6 -6 -5 -5 -5 -5 -5 -5 -4 -4 -4 -4 -3 -3 -3 -2 -2 -2 -1 -1 -1 ------------- Run | Scr Mat Min Mat Min Exi Min Mat Fac Low Low Dat Pro Fac Low Low Zio Dee Pro Fac Ext Cet Arc Hub Fac Upp Upp Zhi Pro Res Tes Res Qua Sec Acc Com Ac0 Turns Passed 32747 | 97 1239 1014 2245 1163 1958 446 1777 2028 890 948 58 900 1901 690 847 652 1474 569 1876 556 243 90 633 984 592 390 171 320 1135 953 755 613 458 611 862 609 Spaces Moved 32282 | 48 622 600 1135 612 1051 582 1106 1945 1159 1061 92 849 1952 804 967 905 1010 838 2532 718 220 97 812 1224 674 750 197 508 1028 1038 964 1217 695 910 850 510 Core 16 | 3 . . 1 . . . . . . . . . . . . . . . . . . . . . . . . . . . . . 3 9 . . Treads 3793 | 45 622 600 1134 612 780 . . . . . . . . . . . . . . . . . . . . . . . . . . . . . . . Legs 30 | . . . . . . . . . . . . . . . . . . . . . . . . . . . . . . . . . . . . 30 Wheels . | . . . . . . . . . . . . . . . . . . . . . . . . . . . . . . . . . . . . . Hover 28443 | . . . . . 271 582 1106 1945 1159 1061 92 849 1952 804 967 905 1010 838 2532 718 220 97 812 1224 674 750 197 508 1028 1038 964 1217 692 901 850 480 Flight . | . . . . . . . . . . . . . . . . . . . . . . . . . . . . . . . . . . . . . Fastest Speed 24 | 50 160 160 160 160 66 66 66 58 63 63 63 63 63 63 63 63 63 63 31 31 31 63 31 31 31 31 31 31 26 24 24 24 24 24 24 24 Average Speed 61 | 153 160 160 160 167 148 66 79 72 63 63 63 63 63 63 63 63 63 63 35 31 55 63 44 37 31 31 31 31 27 25 24 24 27 32 25 43 Slowest Speed 525 | 160 160 160 200 180 180 66 126 126 72 63 63 63 72 63 63 63 65 63 63 31 63 63 135 63 31 31 31 31 31 230 126 24 525 525 152 170 Overloaded Moves . | . . . . . . . . . . . . . . . . . . . . . . . . . . . . . . . . . . . . . Propulsion Burnouts . | . . . . . . . . . . . . . . . . . . . . . . . . . . . . . . . . . . . . . Robots Hopped . | . . . . . . . . . . . . . . . . . . . . . . . . . . . . . . . . . . . . . Cave-ins Triggered . | . . . . . . . . . . . . . . . . . . . . . . . . . . . . . . . . . . . . . Teleports 1 | . . . . . . . . . . . . . . . . . . . . . . . . . . . . . . . . . . . 1 . Exploration Rate (%) 72 | 4 97 97 97 97 90 84 94 60 96 89 72 96 48 96 92 86 88 94 76 82 76 69 88 31 87 80 61 81 41 91 27 92 33 33 40 25 Regions Visited 36 Branch Regions 26 Pre-discovered Areas 15 | . 2 . 1 1 1 . . . . . 1 . . . 1 1 . . . . . . . . 2 2 3 . . . . . . . . . Known Exits Taken 16 | . 1 1 1 . . 1 1 1 1 . . . 1 . . . . . 1 . . . 1 1 . . . . 1 1 1 . 1 1 . . Unknown Exits Taken 20 | 1 . . . 1 1 . . . . 1 1 1 . 1 1 1 1 1 . 1 1 1 . . 1 1 1 1 . . . 1 . . 1 . Scrap Searched 27 | . . 1 . 2 . 1 . . 4 2 . 3 . 5 2 2 . 1 . . . . . . 2 2 . . . . . . . . . . Spaces Dug 119 | . . 7 2 . 8 . 2 2 1 2 . 1 5 2 3 3 1 . 7 1 . . 1 3 2 . . . 16 8 12 7 9 2 11 1 Terrain Destroyed 707 | . 7 18 30 48 32 11 81 3 1 2 . 1 5 2 3 3 9 . 7 1 . . 328 47 2 . . . 16 8 12 7 9 2 11 1 Melee 104 | . . . 2 . . . 2 2 1 2 . 1 5 2 3 3 1 . 7 1 . . 1 3 2 . . . 16 8 12 7 9 2 11 1 Projectile 49 | . . . . . 2 6 40 1 . . . . . . . . . . . . . . . . . . . . . . . . . . . . AOE 554 | . 7 18 28 48 30 5 39 . . . . . . . . . 8 . . . . . 327 44 . . . . . . . . . . . . Terrain Rammed . | . . . . . . . . . . . . . . . . . . . . . . . . . . . . . . . . . . . . . Walls Destroyed . | . . . . . . . . . . . . . . . . . . . . . . . . . . . . . . . . . . . . . Machines Disabled . | . . . . . . . . . . . . . . . . . . . . . . . . . . . . . . . . . . . . . Actions | -11 -10 -10 -9 -9 -9 -8 -8 -7 -7 -7 -7 -6 -6 -6 -6 -6 -6 -5 -5 -5 -5 -5 -5 -4 -4 -4 -4 -3 -3 -3 -2 -2 -2 -1 -1 -1 --------- Run | Scr Mat Min Mat Min Exi Min Mat Fac Low Low Dat Pro Fac Low Low Zio Dee Pro Fac Ext Cet Arc Hub Fac Upp Upp Zhi Pro Res Tes Res Qua Sec Acc Com Ac0 Total 42898 | 59 774 636 1436 691 1265 618 1881 2451 1281 1296 91 1178 2523 946 1162 978 1783 868 3374 998 324 121 1013 1626 1021 875 297 641 1724 1658 1443 1520 903 1171 1452 820 Wait 6705 | . 53 12 94 22 1 7 524 284 51 160 . 257 398 71 108 36 577 11 604 186 68 20 115 242 314 101 69 98 532 439 386 237 39 96 465 28 Move 32243 | 47 621 599 1134 611 1050 581 1105 1944 1158 1060 91 848 1951 803 966 904 1009 837 2530 716 219 96 812 1222 673 749 196 507 1027 1037 962 1216 694 909 849 510 Hop . | . . . . . . . . . . . . . . . . . . . . . . . . . . . . . . . . . . . . . Pick Up 152 | . 4 4 5 1 17 . 5 9 3 . . 1 3 2 6 6 11 . 10 . . . 3 5 . 2 3 2 9 5 . 6 6 7 9 8 Fast Attach 244 | 7 2 2 15 1 15 1 13 13 6 7 . 11 11 2 3 5 12 . 10 2 5 . 2 5 . . 6 2 3 38 7 5 5 1 10 17 Attach 43 | . 1 . 1 . 3 1 3 5 1 2 . 3 4 . 1 . 2 . 2 . . . 1 2 . . 1 . 2 . . 1 1 . 2 4 Detach 21 | . . . 1 . 2 . 2 4 1 2 . 2 2 . . . . . 1 . . . . . . . . . . . . . . . . 4 Swap 101 | . 2 . 11 3 3 . 2 9 . . . 2 8 1 1 . 7 4 5 4 . . 8 4 . . 1 . 4 3 3 1 1 3 9 2 Drop 361 | . 4 5 22 3 32 1 12 23 10 7 . 11 14 4 6 11 33 . 17 2 5 . 2 9 . 2 8 4 10 46 7 10 7 6 17 11 Fire 526 | 5 52 10 72 36 140 15 115 12 . . . . . . . . 35 . 20 . . . 2 . . . . . . . . . . . . 12 Melee 1324 | . . 3 23 . . 9 29 88 27 31 . 25 71 37 41 13 32 8 108 45 14 3 40 58 15 14 4 13 79 63 48 29 82 81 64 127 Ram 1 | . . . . . . . . . . . . . . . . . . . . . . . 1 . . . . . . . . . . . . . Kick . | . . . . . . . . . . . . . . . . . . . . . . . . . . . . . . . . . . . . . Crush 1 | . . . 1 . . . . . . . . . . . . . . . . . . . . . . . . . . . . . . . . . Escape Stasis 17 | . . . . . . . . . . . . . . . . . . . 1 5 . . . 1 . . . . . . 1 . 9 . . . Rewire 3 | . . . 2 . . . . . . . . . . . 1 . . . . . . . . . . . . . . . . . . . . . Trap 3 | . . . . . 2 . . . . 1 . . . . . . . . . . . . . . . . . . . . . . . . . . Miscellaneous 1153 | . 35 1 55 14 . 3 71 60 24 26 . 18 61 26 29 3 65 8 66 38 13 2 27 78 19 7 9 15 58 27 29 15 59 68 27 97 Route ------- -11/Scrapyard -10/Materials (discovered 4 exits: *Mat x3 / *Min) -10/Mines (discovered 2 exits: *Mat x2) -9/Materials (discovered 6 exits: *Mat x3 / *Min / *Sto x2) -9/Mines (discovered 3 exits: *Mat x2 / *Exi) -9/Exiles (discovered 2 exits: *Min x2) -8/Mines -8/Materials (discovered 3 exits: *Fac x3) -7/Factory (discovered 5 exits: *Fac x3 / *Low x2) -7/Lower Caves -7/Lower Caves (discovered 2 exits: *Fac / *Dat) -7/Data Miner -6/Proximity Caves -6/Factory (discovered 5 exits: *Fac x3 / *Low x2) -6/Lower Caves (discovered 2 exits: *Low / [*Zio]) -6/Lower Caves (discovered 2 exits: *Fac / [*Zio]) -6/Zion (discovered 2 exits: [*Dee] / [*Pro]) -6/Deep Caves -5/Proximity Caves -5/Factory (discovered 8 exits: *Fac x4 / *Upp x2 / *Ext x2) -5/Extension (discovered 3 exits: *Fac x2 / *Cet) -5/Cetus (discovered 2 exits: *Fac / [*Arc]) -5/Archives (discovered 3 exits: *Fac / *Hub x2) -5/Hub_04(d) (discovered 4 exits: *Fac x4) -4/Factory (discovered 6 exits: *Res x3 / *Upp x2 / Arm) -4/Upper Caves -4/Upper Caves (discovered 2 exits: *Res / *Zhi) -4/Zhirov -3/Proximity Caves -3/Research (discovered 5 exits: *Res x3 / *Tes x2) -3/Testing -2/Research (discovered 5 exits: *Acc x3 / *Qua x2) -2/Quarantine (discovered 2 exits: *Acc / *Sec) -2/Section 7 -1/Access (discovered 2 exits: Sur / *Com) -1/Command (discovered 3 exits: *Sur x2 / [*Ac0]) -1/Access_0 History --------- Turn | Location | Event 8 | -11/Scrapyard | Upgraded with Propulsion slot (x1) 8 | -11/Scrapyard | Upgraded with Utility slot (x1) 8 | -11/Scrapyard | Upgraded with Weapon slot (x1) 12 | -11/Scrapyard | Discovered new exit (range 15) 98 | -11/Scrapyard | Entered Materials 307 | -10/Materials | Build established: Mutant 377 | -10/Materials | Discovered new exit (range 16) 634 | -10/Materials | Discovered new exit (range 16) 789 | -10/Materials | Reached level 2 861 | -10/Materials | Identified exit to Materials 865 | -10/Materials | Identified exit to Mines 996 | -10/Materials | Upgraded with Utility slot (x1) 996 | -10/Materials | Upgraded with Weapon slot (x1) 1337 | -10/Materials | Entered Mines 1372 | -10/Mines | Learned Materials stockpile data 1456 | -10/Mines | Discovered exit to Materials (range 11) 1521 | -10/Mines | Found a hidden stash of uninstalled traps 1697 | -10/Mines | Reached level 3 1749 | -10/Mines | A weapon hastily lodged in a ceiling crevice suddenly fell to the ground 2013 | -10/Mines | Received a Mining Laser from a helpful Derelict 2044 | -10/Mines | Discovered exit to Materials (range 7) 2133 | -10/Mines | Learned Materials non-interactive machine intel 2351 | -10/Mines | Entered Materials 2351 | -9/Materials | Discovered new exit (range 15) 2353 | -9/Materials | Loaded intel: 30 non-interactive machine locations 2353 | -9/Materials | Reached level 4 2366 | -9/Materials | Upgraded with Utility slot (x1) 2413 | -9/Materials | Identified exit to Storage 2750 | -9/Materials | Discovered new exit (range 12) 2867 | -9/Materials | Reached level 5 2881 | -9/Materials | Upgraded with Utility slot (x1) 3014 | -9/Materials | Build established: Hacker-Mutant 3173 | -9/Materials | Discovered new exit (range 15) 3554 | -9/Materials | Central database locked down 3583 | -9/Materials | Reached level 6 3646 | -9/Materials | Identified exit to Mines 3676 | -9/Materials | Discovered new exit (range 17) 3890 | -9/Materials | Upgraded with Power slot (x1) 4111 | -9/Materials | Reached level 7 4136 | -9/Materials | Upgraded with Utility slot (x1) 4310 | -9/Materials | Identified exit to Materials 4392 | -9/Materials | Build established: Tank 4596 | -9/Materials | Entered Mines 4603 | -9/Mines | Received a Rocket Launcher from a helpful Derelict 4762 | -9/Mines | Discovered new exit (range 12) 4777 | -9/Mines | Deemed a non-threat by the Exiles lab entrance 5013 | -9/Mines | Reached level 8 5042 | -9/Mines | Discovered exit to Materials (range 13) 5197 | -9/Mines | Discovered exit to Materials (range 5) 5759 | -9/Mines | Entered Exiles 5783 | -9/Exiles | Discovered new exit (range 16) 5801 | -9/Exiles | Met 8R-AWN 5900 | -9/Exiles | Met EX-HEX 5965 | -9/Exiles | Met EX-DEC 6010 | -9/Exiles | Met EX-BIN 6075 | -9/Exiles | Learned location of Zion (-6) 6385 | -9/Exiles | Aligned with FarCom system 6387 | -9/Exiles | Given EX-Vault access code 6428 | -9/Exiles | Opened EX-Vault 6471 | -9/Exiles | Warned to stay clear of 0b10 Research branches 6533 | -9/Exiles | Build established: Mutant 6903 | -9/Exiles | Attacked by the Exiles 7018 | -9/Exiles | Core integrity fell below 50% 7053 | -9/Exiles | Destroyed 8R-AWN 7074 | -9/Exiles | Found Prototype Device 7074 | -9/Exiles | Identified AS-neutralizer No. 17b 7091 | -9/Exiles | Found Prototype Ballistic Gun 7091 | -9/Exiles | Identified 8R-AWN's Boregun 7103 | -9/Exiles | Found Prototype Processor 7103 | -9/Exiles | Identified Exp. Targeting Computer 7300 | -9/Exiles | Destroyed EX-BIN 7368 | -9/Exiles | Destroyed EX-HEX 7377 | -9/Exiles | Build established: Scavenger-Mutant 7463 | -9/Exiles | Destroyed EX-DEC 7502 | -9/Exiles | Upgraded with Propulsion slot (x1) 7549 | -9/Exiles | Found Prototype Device 7550 | -9/Exiles | Identified System Purifier 7631 | -9/Exiles | Found Prototype Protection 7631 | -9/Exiles | Identified 8R-AWN's Armor/EX 7711 | -9/Exiles | Discovered new exit (range 11) 7717 | -9/Exiles | Entered Mines 7719 | -8/Mines | Reached level 9 7721 | -8/Mines | Upgraded with Utility slot (x1) 7884 | -8/Mines | Discovered exit to Materials (range 14) 8163 | -8/Mines | Entered Materials 8164 | -8/Materials | Identified exit to Factory 8164 | -8/Materials | Core integrity fell below 50% 8165 | -8/Materials | Reached level 10 8299 | -8/Materials | Reached level 11 8305 | -8/Materials | Upgraded with Utility slot (x1) 8330 | -8/Materials | Core integrity fell below 20% 8690 | -8/Materials | Build established: Hacker-Mutant 8725 | -8/Materials | Repaired Adv. Weapon Cycler 8776 | -8/Materials | Repaired Gravmag Array 9167 | -8/Materials | Reached level 12 9184 | -8/Materials | Upgraded with Weapon slot (x1) 9320 | -8/Materials | Central database locked down 9787 | -8/Materials | Repaired Broken System Purifier 9846 | -8/Materials | Build established: Scavenger-Mutant 9940 | -8/Materials | Entered Factory 9942 | -7/Factory | Reached level 13 9944 | -7/Factory | Upgraded with Propulsion slot (x1) 10271 | -7/Factory | Discovered new exit (range 9) 10430 | -7/Factory | Reached level 14 10526 | -7/Factory | Fabricated Cmb. Antigrav System (x2) 10556 | -7/Factory | Build established: Hacker-Mutant 10660 | -7/Factory | Fabricated Powered Armor (x2) 10875 | -7/Factory | Identified exit to Lower Caves 11056 | -7/Factory | Upgraded with Power slot (x1) 11058 | -7/Factory | Discovered new exit (range 14) 11280 | -7/Factory | Central database locked down 11451 | -7/Factory | Build established: Hacker-Gladiator 11538 | -7/Factory | Fabricated Cold Fusion Reactor? 11571 | -7/Factory | Reached level 15 11578 | -7/Factory | Upgraded with Utility slot (x1) 11635 | -7/Factory | Local fabrication network quarantined 11867 | -7/Factory | Discovered new exit (range 19) 11940 | -7/Factory | First assault squad dispatched 11968 | -7/Factory | Entered Lower Caves 11974 | -7/Lower Caves | Encountered a Warlord checkpoint 12152 | -7/Lower Caves | Attracted the attention of an 0b10 checkpoint 12165 | -7/Lower Caves | Build established: Machinist-Gladiator 12169 | -7/Lower Caves | Learned 4 Factory zone layouts 12355 | -7/Lower Caves | Reached level 16 12423 | -7/Lower Caves | Identified exit to Lower Caves 12664 | -7/Lower Caves | Found Prototype Device 12669 | -7/Lower Caves | Identified Heart of Steel 12829 | -7/Lower Caves | Build established: Scavenger-Gladiator 12858 | -7/Lower Caves | Entered another Lower Caves area 12858 | -7/Lower Caves | Discovered new exit (range 16) 12876 | -7/Lower Caves | Learned Factory emergency access door positions 13086 | -7/Lower Caves | Encountered a Warlord checkpoint 13245 | -7/Lower Caves | Spotted B-75 Beast 13313 | -7/Lower Caves | Destroyed B-75 Beast 13570 | -7/Lower Caves | Discovered new exit (range 8) 13576 | -7/Lower Caves | Learned Extension emergency access door positions 13653 | -7/Lower Caves | Attracted the attention of an 0b10 base 13806 | -7/Lower Caves | Entered Data Miner 13806 | -7/Data Miner | Discovered new exit (range 6) 13818 | -7/Data Miner | Met Data Miner 13837 | -7/Data Miner | Learned location of Section 7 (-2) 13837 | -7/Data Miner | Acquired the access code to Warlord's prototype stash 13846 | -7/Data Miner | Received God Mode back door access code from Data Miner 13864 | -7/Data Miner | Entered Proximity Caves 13866 | -6/Proximity Caves | Reached level 17 14068 | -6/Proximity Caves | Escorted by Enhanced Grunt 14182 | -6/Proximity Caves | Spotted B-75 Beast 14196 | -6/Proximity Caves | Destroyed B-75 Beast 14198 | -6/Proximity Caves | Discovered new exit (range 18) 14200 | -6/Proximity Caves | Learned Factory emergency access door positions 14421 | -6/Proximity Caves | Reached level 18 14552 | -6/Proximity Caves | Upgraded with Utility slot (x1) 14553 | -6/Proximity Caves | Found Alien Artifact 14764 | -6/Proximity Caves | Entered Factory 14764 | -6/Factory | Accompanied by 1 ally 14765 | -6/Factory | Identified exit to Lower Caves 14768 | -6/Factory | Discovered new exit (range 23) 14858 | -6/Factory | Reached level 19 15287 | -6/Factory | Discovered exit to Lower Caves (range 24) 15520 | -6/Factory | Incoming investigation squad redirected 15749 | -6/Factory | Discovered new exit (range 16) 15790 | -6/Factory | Reached level 20 15805 | -6/Factory | Build established: Hacker-Gladiator 15816 | -6/Factory | Fabricated Kinetic Spear? 16009 | -6/Factory | Identified Core Expander 16019 | -6/Factory | Discovered new exit (range 22) 16029 | -6/Factory | Installed Core Expander, added new Utility slot 16182 | -6/Factory | Local fabrication network quarantined 16190 | -6/Factory | Fabricated Exp. Transmission Jammer? 16375 | -6/Factory | Incoming investigation squad redirected 16513 | -6/Factory | Incoming investigation squad redirected 16588 | -6/Factory | Incoming investigation squad redirected 16665 | -6/Factory | Entered Lower Caves 16747 | -6/Lower Caves | Learned Factory garrison access intel 16770 | -6/Lower Caves | Attracted the attention of an 0b10 checkpoint 16840 | -6/Lower Caves | Build established: Machinist-Mutant 16890 | -6/Lower Caves | Encountered a Warlord checkpoint 17012 | -6/Lower Caves | Discovered new exit (range 24) 17256 | -6/Lower Caves | A Derelict revealed a hidden shortcut to a safe place 17312 | -6/Lower Caves | Spotted B-75 Beast 17337 | -6/Lower Caves | Destroyed B-75 Beast 17355 | -6/Lower Caves | Entered another Lower Caves area 17375 | -6/Lower Caves | Discovered new exit (range 23) 17393 | -6/Lower Caves | Learned Factory stockpile data 17457 | -6/Lower Caves | Attracted the attention of an 0b10 outpost 17593 | -6/Lower Caves | Destroyed 8 combat bots 17787 | -6/Lower Caves | Encountered a Warlord checkpoint 17936 | -6/Lower Caves | Heart of Steel transformed into Warbot 18024 | -6/Lower Caves | Discovered new exit (range 17) 18087 | -6/Lower Caves | A Commander dispatched an escort 18095 | -6/Lower Caves | Learned location of 1 exit from Factory 18095 | -6/Lower Caves | Learned Extension emergency access door positions 18095 | -6/Lower Caves | Learned Factory stockpile data 18095 | -6/Lower Caves | Learned Research stockpile data 18095 | -6/Lower Caves | Learned Armory terminal intel 18095 | -6/Lower Caves | Learned Armory security intel 18202 | -6/Lower Caves | Entered Zion 18202 | -6/Zion | Accompanied by 4 allies (Warbot) 18203 | -6/Zion | Commander's escort returned to base 18203 | -6/Zion | Commander's escort returned to base 18204 | -6/Zion | Reached level 21 18231 | -6/Zion | Discovered new exit (range 14) 18240 | -6/Zion | Gained Derelict followers 18335 | -6/Zion | Found Prototype Launcher 18335 | -6/Zion | Identified Gui. Missile Launcher 18369 | -6/Zion | Learned location of 1 exit from Factory 18381 | -6/Zion | Learned 8 Factory zone layouts 18401 | -6/Zion | Given the Hacking Drone Bay 18405 | -6/Zion | Found Prototype Device 18405 | -6/Zion | Identified Hacking Drone Bay 18413 | -6/Zion | Discovered new exit (range 18) 18529 | -6/Zion | Learned location of Armory (-4) 18775 | -6/Zion | Saw the warning signs outside the Deep Caves entrance 18804 | -6/Zion | Attacked by Zionites 18854 | -6/Zion | Entered Deep Caves 19008 | -6/Deep Caves | Attacked by Z-Imprinter 19045 | -6/Deep Caves | Destroyed Z-Imprinter 19061 | -6/Deep Caves | Found Prototype Device 19061 | -6/Deep Caves | Identified Zio. Metafield Generator 19221 | -6/Deep Caves | Z-Facility disabled 19473 | -6/Deep Caves | Discovered new exit (range 18) 19477 | -6/Deep Caves | Found Surveybot 24 Chip 19573 | -6/Deep Caves | Spotted as-91714 19596 | -6/Deep Caves | Exposed GOLEM chamber 19687 | -6/Deep Caves | Build established: Scavenger-Mutant 19895 | -6/Deep Caves | Found GOLEM Unit 20262 | -6/Deep Caves | Spotted as-04501 20328 | -6/Deep Caves | Entered Proximity Caves 20387 | -5/Proximity Caves | Learned location of 1 exit from Factory 20436 | -5/Proximity Caves | Build established: Generator-Mutant 20605 | -5/Proximity Caves | Learned Factory emergency access door positions 20700 | -5/Proximity Caves | Spotted B-75 Beast 20798 | -5/Proximity Caves | Discovered new exit (range 19) 20811 | -5/Proximity Caves | Learned 4 Factory zone layouts 20897 | -5/Proximity Caves | Entered Factory 20898 | -5/Factory | Identified exit to Extension 20899 | -5/Factory | Identified exit to Factory 20899 | -5/Factory | Reached level 22 20903 | -5/Factory | Loaded intel: 4 garrison access locations 21007 | -5/Factory | Discovered new exit (range 21) 21191 | -5/Factory | Discovered exit to Factory (range 13) 21448 | -5/Factory | Fabricated Imp. Powered Armor (x1) 21462 | -5/Factory | Fabricated Adv. Hardlight Generator (x2) 21566 | -5/Factory | Build established: Generator-Sprinter 21578 | -5/Factory | Fabricated Imp. Powered Armor? 21644 | -5/Factory | Fabricated Kinetic Spear (x1) 21663 | -5/Factory | Incoming investigation squad redirected 21706 | -5/Factory | Local fabrication network quarantined 21742 | -5/Factory | Spotted B-75 Beast 21749 | -5/Factory | Destroyed B-75 Beast 21797 | -5/Factory | First assault squad dispatched 21807 | -5/Factory | Reached level 23 21807 | -5/Factory | Upgraded with Utility slot (x1) 21826 | -5/Factory | Identified exit to Upper Caves 22632 | -5/Factory | Incoming investigation squad redirected 22720 | -5/Factory | Incoming assault squad redirected 22773 | -5/Factory | Entered Extension 22775 | -5/Extension | Reached level 24 22945 | -5/Extension | Rescued a captive Derelict 22963 | -5/Extension | Incoming investigation squad redirected 22971 | -5/Extension | Rescued a captive Derelict 22982 | -5/Extension | Spotted B-75 Beast 22984 | -5/Extension | Spotted B-75 Beast 22988 | -5/Extension | Incoming investigation squad redirected 23008 | -5/Extension | Destroyed B-75 Beast 23015 | -5/Extension | Destroyed B-75 Beast 23027 | -5/Extension | Discovered exit to Factory (range 8) 23101 | -5/Extension | Rescued A7 23233 | -5/Extension | Rescued a captive Derelict 23245 | -5/Extension | Central database locked down 23246 | -5/Extension | Rescued a captive Derelict 23246 | -5/Extension | Rescued a captive Derelict 23254 | -5/Extension | Rescued a captive Derelict 23281 | -5/Extension | Discovered exit to Factory (range 10) 23281 | -5/Extension | Discovered new exit (range 6) 23329 | -5/Extension | Entered Cetus 23329 | -5/Cetus | Accompanied by 5 allies (A7) 23334 | -5/Cetus | Acquired a Cetus Manufacturing Module code from A7 23338 | -5/Cetus | Spotted Cetus Guard 23338 | -5/Cetus | Spotted Cetus Guard 23341 | -5/Cetus | Spotted Cetus Guard 23342 | -5/Cetus | Spotted Cetus Guard 23352 | -5/Cetus | Destroyed Cetus Guard 23354 | -5/Cetus | Allies destroyed Cetus Guard 23356 | -5/Cetus | Allies destroyed Cetus Guard 23407 | -5/Cetus | Started Cetus Manufacturing Module 23432 | -5/Cetus | Manufactured an Enhanced Grunt 23449 | -5/Cetus | Discovered new exit (range 16) 23457 | -5/Cetus | Manufactured an Enhanced Grunt 23461 | -5/Cetus | Spotted Cetus Guard 23461 | -5/Cetus | Spotted Cetus Guard 23462 | -5/Cetus | Spotted Cetus Guard 23462 | -5/Cetus | Spotted Cetus Guard 23463 | -5/Cetus | Discovered exit to Factory (range 17) 23465 | -5/Cetus | Destroyed Cetus Guard 23474 | -5/Cetus | Destroyed Cetus Guard 23479 | -5/Cetus | Destroyed Cetus Guard 23481 | -5/Cetus | Destroyed Cetus Guard 23482 | -5/Cetus | Manufactured an Enhanced Grunt 23483 | -5/Cetus | Met Revision 17 23507 | -5/Cetus | Manufactured an Enhanced Grunt 23532 | -5/Cetus | Manufactured an Enhanced Grunt 23572 | -5/Cetus | Entered Archives 23572 | -5/Archives | Accompanied by 10 allies (A7) 23597 | -5/Archives | Discovered new exit (range 17) 23603 | -5/Archives | Discovered new exit (range 17) 23610 | -5/Archives | Discovered exit to Factory (range 16) 23662 | -5/Archives | Entered Hub_04(d) 23662 | -5/Hub_04(d) | Accompanied by 7 allies 23679 | -5/Hub_04(d) | Reached level 25 23679 | -5/Hub_04(d) | Adv. System Shield fried by hacking feedback 23681 | -5/Hub_04(d) | Discovered exit to Factory (range 16) 23682 | -5/Hub_04(d) | Discovered exit to Factory (range 16) 23756 | -5/Hub_04(d) | Incoming investigation squad redirected 23962 | -5/Hub_04(d) | First assault squad dispatched 23988 | -5/Hub_04(d) | Incoming assault squad redirected 24219 | -5/Hub_04(d) | Network Hub disabled 24219 | -5/Hub_04(d) | Network Hub disabled 24222 | -5/Hub_04(d) | Disrupted transfer network 24234 | -5/Hub_04(d) | Network Hub disabled 24238 | -5/Hub_04(d) | Incoming investigation squad redirected 24249 | -5/Hub_04(d) | Network Hub disabled 24253 | -5/Hub_04(d) | Spotted Lightning 24288 | -5/Hub_04(d) | Incoming assault squad redirected 24292 | -5/Hub_04(d) | Core integrity fell below 50% 24295 | -5/Hub_04(d) | Entered Factory 24296 | -4/Factory | Core integrity fell below 50% 24297 | -4/Factory | Reached level 26 24343 | -4/Factory | Discovered new exit (range 3) 24351 | -4/Factory | Identified exit to Upper Caves 24351 | -4/Factory | Identified exit to Armory 24357 | -4/Factory | Upgraded with Utility slot (x1) 24423 | -4/Factory | Discovered new exit (range 5) 24545 | -4/Factory | First assault squad dispatched 24569 | -4/Factory | Fabricated Adv. Armor Integrity Analyzer? 24595 | -4/Factory | Build established: Hacker-Sprinter 24675 | -4/Factory | Fabricated Adv. Powered Armor (x1) 24821 | -4/Factory | Incoming assault squad redirected 24868 | -4/Factory | Fabricated Exp. Terrain Scanner? 24890 | -4/Factory | Local fabrication network quarantined 24944 | -4/Factory | Fabricated Enh. Force Lance? 24993 | -4/Factory | Spotted B-86 Titan 25144 | -4/Factory | Destroyed 8 combat bots 25245 | -4/Factory | Spotted B-86 Titan 25249 | -4/Factory | Discovered new exit (range 29) 25279 | -4/Factory | Entered Upper Caves 25284 | -4/Upper Caves | Learned location of Testing (-3) 25527 | -4/Upper Caves | Build established: Machinist-Sprinter 25653 | -4/Upper Caves | Discovered new exit (range 17) 25694 | -4/Upper Caves | Reached level 27 25871 | -4/Upper Caves | Entered another Upper Caves area 25874 | -4/Upper Caves | Discovered new exit (range 11) 26014 | -4/Upper Caves | Attracted the attention of an 0b10 checkpoint 26138 | -4/Upper Caves | Discovered new exit (range 27) 26261 | -4/Upper Caves | Entered Zhirov 26261 | -4/Zhirov | Discovered new exit (range 3) 26267 | -4/Zhirov | Met Zhirov 26273 | -4/Zhirov | Learned location of Quarantine (-2) 26273 | -4/Zhirov | Learned location of Command (-1) 26278 | -4/Zhirov | Zhirov requested help retrieving the SGEMP Prototype 26284 | -4/Zhirov | Found Alien Artifact 26284 | -4/Zhirov | Identified Integrated Reactor 26284 | -4/Zhirov | Installed Integrated Reactor, increased core energy generation (+10) 26399 | -4/Zhirov | Found Alien Artifact 26432 | -4/Zhirov | Entered Proximity Caves 26613 | -3/Proximity Caves | Discovered new exit (range 8) 26706 | -3/Proximity Caves | Attracted the attention of an 0b10 checkpoint 26752 | -3/Proximity Caves | Entered Research 26754 | -3/Research | Reached level 28 26754 | -3/Research | Upgraded with Utility slot (x1) 26768 | -3/Research | Identified exit to Research 26769 | -3/Research | Spotted B-86 Titan 26780 | -3/Research | Destroyed B-86 Titan 26872 | -3/Research | Spotted B-86 Titan 26937 | -3/Research | Destroyed B-86 Titan 26958 | -3/Research | Local fabrication network quarantined 26999 | -3/Research | Fabricated Cmb. Linear Gravjet (x2) 27046 | -3/Research | Discovered new exit (range 30) 27089 | -3/Research | Destroyed 8 combat bots 27131 | -3/Research | Reached level 29 27167 | -3/Research | Identified Transdimensional Reconstructor 27252 | -3/Research | First assault squad dispatched 27399 | -3/Research | Destroyed 7 combat bots 27431 | -3/Research | Repaired Broken Nanoactuators 27526 | -3/Research | Spotted B-86 Titan 27543 | -3/Research | Destroyed B-86 Titan 27581 | -3/Research | Identified exit to Testing 27887 | -3/Research | Entered Testing 27964 | -3/Testing | Found Enh. Force Lance 27978 | -3/Testing | Found Prototype Energy Cannon 27978 | -3/Testing | Identified Potential Cannon 28013 | -3/Testing | Spotted Striker 28013 | -3/Testing | Spotted Striker 28025 | -3/Testing | Destroyed Striker 28056 | -3/Testing | Destroyed Striker 28069 | -3/Testing | Spotted Alpha 7 28072 | -3/Testing | Destroyed Alpha 7 28087 | -3/Testing | Stole the SGEMP Prototype 28087 | -3/Testing | Reached level 30 28155 | -3/Testing | Found Enh. Force Lance 28171 | -3/Testing | Found Prototype Energy Gun 28171 | -3/Testing | Identified Warp Gun 28187 | -3/Testing | Found Prototype Hackware 28187 | -3/Testing | Identified Ghost Barrier 28215 | -3/Testing | Found Prototype Energy Cannon 28215 | -3/Testing | Identified Hpw. Disruptor Cannon 28299 | -3/Testing | Fabricated Exp. Actuator Array (x1) 28358 | -3/Testing | Fabricated Cmb. Linear Gravjet (x2) 28424 | -3/Testing | Found Prototype Device 28424 | -3/Testing | Identified Femtoactuators 28427 | -3/Testing | Found Prototype Processor 28427 | -3/Testing | Identified Exp. Core Analyzer 28545 | -3/Testing | Fabricated M-36 Artificer (x1) 28555 | -3/Testing | Found Prototype Leg 28555 | -3/Testing | Identified Myomer Exoskeleton 28637 | -3/Testing | First assault squad dispatched 28653 | -3/Testing | Incoming assault squad redirected 28654 | -3/Testing | Destroyed 7 combat bots 28720 | -3/Testing | Found Prototype Protection 28720 | -3/Testing | Identified Med. Regenerative Plating 28723 | -3/Testing | Found Prototype Protection 28723 | -3/Testing | Identified SHELL Armor 28780 | -3/Testing | Local fabrication network quarantined 28840 | -3/Testing | Entered Research 28842 | -2/Research | Reached level 31 28933 | -2/Research | Incoming investigation squad redirected 29131 | -2/Research | Identified exit to Access 29143 | -2/Research | Identified exit to Quarantine 29178 | -2/Research | Spotted B-90 Cyclops 29190 | -2/Research | Destroyed B-90 Cyclops 29340 | -2/Research | First assault squad dispatched 29470 | -2/Research | Reached level 32 29527 | -2/Research | Spotted B-90 Cyclops 29554 | -2/Research | Incoming assault squad redirected 29595 | -2/Research | Entered Quarantine 29724 | -2/Quarantine | Found Alien Artifact 29830 | -2/Quarantine | Found Prototype Reactor 29830 | -2/Quarantine | Identified Vortex Chain Reactor 29863 | -2/Quarantine | Cryocooling Duct disabled 29878 | -2/Quarantine | Ambient heat levels rising (+20) 29878 | -2/Quarantine | Non-combat units ordered to evacuate 29881 | -2/Quarantine | Identified Subatomic Replicator 29892 | -2/Quarantine | Found Alien Artifact 29903 | -2/Quarantine | Identified Core Reset Matrix 30187 | -2/Quarantine | Spotted Fortress 30207 | -2/Quarantine | Discovered new exit (range 5) 30208 | -2/Quarantine | Entered Section 7 30210 | -2/Section 7 | Reached level 33 30215 | -2/Section 7 | Upgraded with Utility slot (x1) 30259 | -2/Section 7 | Spotted S7 Guard 30265 | -2/Section 7 | Destroyed S7 Guard 30270 | -2/Section 7 | Found Alien Artifact 30270 | -2/Section 7 | Identified Integrated Heat Negator 30270 | -2/Section 7 | Installed Integrated Heat Negator, increased core heat dissipation (+40) 30296 | -2/Section 7 | Found Alien Artifact 30306 | -2/Section 7 | Identified Integrity Redistributor 30416 | -2/Section 7 | Spotted S7 Guard 30428 | -2/Section 7 | Destroyed S7 Guard 30438 | -2/Section 7 | Found Alien Artifact 30466 | -2/Section 7 | Scanned by Researcher 30475 | -2/Section 7 | Identified Integrated Singularity Reactor 30475 | -2/Section 7 | Used Subatomic Replicator to replicate Integrated Singularity Reactor 30477 | -2/Section 7 | Discovered exit to Access (range 29) 30477 | -2/Section 7 | Installed Integrated Singularity Reactor, increased core energy generation (+20) 30478 | -2/Section 7 | Installed Integrated Singularity Reactor, increased core energy generation (+20) 30486 | -2/Section 7 | Intercept squad dispatched 30489 | -2/Section 7 | Spotted Tracker 30495 | -2/Section 7 | Spotted Tracker 30507 | -2/Section 7 | Destroyed Tracker 30512 | -2/Section 7 | Spotted Combat Programmer 30513 | -2/Section 7 | Core integrity fell below 50% 30514 | -2/Section 7 | Found Exp. Phase Shifter 30517 | -2/Section 7 | Spotted Combat Programmer 30521 | -2/Section 7 | Destroyed Tracker 30534 | -2/Section 7 | Core integrity fell below 20% 30548 | -2/Section 7 | Destroyed Combat Programmer 30556 | -2/Section 7 | Destroyed Combat Programmer 30612 | -2/Section 7 | Destroyed 13 combat bots 30640 | -2/Section 7 | Found Integrity Redistributor 30666 | -2/Section 7 | Entered Access 30667 | -1/Access | Loaded intel: 108 machine locations 30667 | -1/Access | Loaded intel: 78 trap records 30667 | -1/Access | Identified exit to Surface 30667 | -1/Access | Discovered exit to Surface (range 163) 30667 | -1/Access | Identified exit to Command 30667 | -1/Access | Discovered exit to Command (range 254) 30667 | -1/Access | Delivered the SGEMP Prototype to Zhirov 30667 | -1/Access | Zhirov transferred Access data 30667 | -1/Access | Reached level 34 30812 | -1/Access | Spotted B-99 Colossus 30825 | -1/Access | Destroyed B-99 Colossus 30858 | -1/Access | Reached level 35 30931 | -1/Access | Zhirov warped through subspace 30945 | -1/Access | High security lockdown imminent 30964 | -1/Access | Intercept squad dispatched 30971 | -1/Access | Build established: Generator-Ninja 30976 | -1/Access | Spotted Tracker 30978 | -1/Access | Spotted Tracker 30981 | -1/Access | Destroyed Tracker 31015 | -1/Access | Destroyed Tracker 31019 | -1/Access | Spotted Combat Programmer 31025 | -1/Access | High security lockdown engaged 31041 | -1/Access | Spotted Combat Programmer 31051 | -1/Access | Destroyed Combat Programmer 31059 | -1/Access | Core integrity fell below 50% 31066 | -1/Access | Destroyed Combat Programmer 31150 | -1/Access | Spotted B-99 Colossus 31277 | -1/Access | Entered Command 31279 | -1/Command | Reached level 36 31376 | -1/Command | High security lockdown imminent 31394 | -1/Command | Spotted M Guard 31394 | -1/Command | Spotted M Guard 31406 | -1/Command | Spotted Combat Programmer 31406 | -1/Command | Spotted Combat Programmer 31456 | -1/Command | High security lockdown engaged 31836 | -1/Command | Met MAIN.C 31839 | -1/Command | 0b10 Conduit disabled 31859 | -1/Command | Reached level 37 31859 | -1/Command | Destroyed MAIN.C Shell 31860 | -1/Command | MAIN.C activated Command garrisons 31865 | -1/Command | Zhirov used SGEMP to disable MAIN.C 31894 | -1/Command | Found Prototype Device 31894 | -1/Command | Identified Beam Splitter 31921 | -1/Command | Found Prototype Protection 31921 | -1/Command | Identified Centrium Heavy Armor Plating 31960 | -1/Command | Found Prototype Ballistic Gun 31960 | -1/Command | Identified Hyp. Multirail 32136 | -1/Command | Warped through subspace to slip node 32136 | -1/Command | Discovered new exit (range 4) 32139 | -1/Command | Entered Access_0 32140 | -1/Access_0 | Met Architect 32146 | -1/Access_0 | Destroyed A8 32160 | -1/Access_0 | Architect warped through subspace 32200 | -1/Access_0 | Architect warped through subspace 32233 | -1/Access_0 | A6 warped into view 32244 | -1/Access_0 | Architect warped through subspace 32246 | -1/Access_0 | Destroyed A6 32278 | -1/Access_0 | Architect warped through subspace 32313 | -1/Access_0 | Architect warped through subspace 32345 | -1/Access_0 | Core integrity fell below 20% 32349 | -1/Access_0 | Architect warped through subspace 32355 | -1/Access_0 | Used Integrity Redistributor, redistributed integrity to core (+272) 32382 | -1/Access_0 | Architect warped through subspace 32414 | -1/Access_0 | Architect warped through subspace 32415 | -1/Access_0 | Found Prototype Device 32415 | -1/Access_0 | Identified Exp. Thermal Shield 32417 | -1/Access_0 | Found Exp. Phase Shifter 32455 | -1/Access_0 | Architect warped through subspace 32482 | -1/Access_0 | Architect warped through subspace 32501 | -1/Access_0 | Found Prototype Device 32501 | -1/Access_0 | Identified Desublimator 32502 | -1/Access_0 | Found Prototype Device 32502 | -1/Access_0 | Identified Exp. Weapon Cycler 32509 | -1/Access_0 | Architect warped through subspace 32538 | -1/Access_0 | Lost 3 parts (1n1u1w) 32555 | -1/Access_0 | Architect warped through subspace 32558 | -1/Access_0 | Found Exp. Actuator Array 32590 | -1/Access_0 | Lost 3 parts (1p1n1u) 32604 | -1/Access_0 | Architect warped through subspace 32663 | -1/Access_0 | Architect warped through subspace 32677 | -1/Access_0 | Found Exp. Weapon Cycler 32680 | -1/Access_0 | Found Exp. Phase Shifter 32696 | -1/Access_0 | Architect warped through subspace 32732 | -1/Access_0 | Used Integrity Redistributor, redistributed integrity to core (+152) 32748 | -1/Access_0 | Destroyed by Architect with Modified Quantum Sheargun Last Messages --------------- 32744_ HV Slug penetrates Wall. 32744_ HV Slug penetrates Architect. 32744_ Architect suffers critical hit. 32744_ HV Slug penetrates Wall. 32745_ Enhanced Grunt suffers critical hit. 32745_ Destroyed Adv. Particle Charger. 32745_ HV Slug penetrates Enhanced Grunt. 32745_ Enhanced Grunt suffers critical hit. 32745_ Enhanced Grunt destroyed. 32745_ HV Slug penetrates Architect. 32745_ Architect suffers critical hit. 32745_ HV Slug penetrates Wall. 32745_ Penetrated by Quantum Shear. 32746_ Critical hit. 32747_ HV Slug penetrates Architect. 32747_ HV Slug penetrates Wall. 32747_ HV Slug penetrates Architect. 32747_ HV Slug penetrates Wall. 32748_ Exp. Phase Shifter destroyed. 32748_ Penetrated by Quantum Shear. Map ----- +----------------------------------------------------+ | ? ? ########### ### ### ####"%!!! ### | | ?? ?######## ############## #####!!=""" | | ########## ############### ####" !!=!" | | ???##?####### #########################!=]!!!"" " | | ??? ##?###### ######################### ]%!"""" | | ######## #########################""""!!!""" | | ?#?# ##### ######################## " | | ###? ? ##### ############ ########### #"" " | | ?##### ##### ########### ####### ## #" " " | | ???### ?#### #### "#### ##""""""""" # "" "" | | ######? #?### ?### "#" "" " !!! !=" | | ?###?#? ### ""#" "##"!== !*] " " | | ##??## " "=%!%"""" " "" | | ?###?# "##" " !]! " " "" | | ?##?##?#?### """"""=!!# # # " | | ####?#####?" ? #"" "" "*!%=="##### | | #??#?##### ?## " !!!*= " ######"" """ | | ?#####??# ?? ## #" ="""## ###### # "" | | ?####?###? ? ####"" # #########"# #" | | ?##?####?###########"""# ## ########### " | | #??##??####?###?########"#### ##########" """ | | ?######?###############;### ############# " " | | #??###################; !0 ############" """ ! | | #??####?#?##?######"" ]g! ############# ! | | #########?##?#??###"" g ### ####### % " | | ###?######?#?###### " @## ### #####" ! "" | | ###?###?####?#####??" ## ##" ### "" "" | | ?#?######?##########" ; ## "" """""""" # # | | ??#??#??#############;;#;; ## | | #?#?#?############## ## ## | | ####?##?######?#?## #?# "" ""##"""""" ## | | ????#?########?### ####;# ##" ### "" ## | | ?##?#??########## ### #;####### ## "! ## | | ??#?######??#??#####? ######## ### ## " "" ## | | ???##?##?###?######## ?### # ### " "" ## | | ??????#?#?#?#?###?#?? ?? ### "#####"" "# ## | | ????#???#?####??###### ? ??# #####"" ""# ## | | ???????###??#?########?? ? ## ?###" """# ## | | ??????#?#?###?####??###? ####" "#" #? | | ???????#####?########?## ? ####" "# ## | | ?????????##?####??####? ? ## #? " # | | ??????????####?####?#?#? ?? ## ## " # | | ??????????????#?###?### ?##? #"#"#### ## | | ???????????????##?#??# ??##### #" #? ## | | ???????????????????????? ?#?#??#?? ? ?? "## | | ?????????????????????????##?#??? ???? ? ?#?? #?## | | ???????????????????????????????? ?? ###?#?#?? | | ???????????????????????????????????? ??#????#?? | | ??????????????????????????????????????##????#??#?? | | ????????????????????????????????????????????#?###? | +----------------------------------------------------+ Best States ------------- Heat Dissipation 113 Energy Generation 156 Energy Capacity 1350 Matter Stores 300 Matter Capacity 300 Sight Range 18 Robot Scan Range 18 Terrain Scan Range 30 Terrain Scan Density 2410 Jamming Range 22 Cloak Strength 3 Power Amplification 30 Additional Mass Support 12 Armor Coverage 1000 Resistance: KI 15 Resistance: TH 30 Resistance: EX 15 Resistance: EM 15 Resistance: I 15 Resistance: S 15 Resistance: P 15 Weapon Cycling 30 Melee Speed Boost 50 Phase Shifting 20 Evasion (%) 94 Targeting Accuracy 12 Melee Accuracy 8 Target Analysis 6 Core Analysis 15 Armor Integrity Analysis 66 Recoil Reduction 2 Salvage Targeting 1 Offensive Hacking 40 Defensive Hacking 29 Item Schematics ----------------- Datajack | -10/Mines | Hacked Plasma Cutter | -9/Materials | Hacked Armor Integrity Analyzer | -9/Materials | Hacked Mining Claw | -9/Materials | Hacked Mak. Hammer | -9/Materials | Scanalyzed Hvy. Armor Plating | -9/Materials | Scanalyzed System Shield | -8/Mines | Hacked Hacking Suite | -8/Mines | Hacked System Purifier | -8/Materials | Scanalyzed Exp. Heat Sink | -8/Materials | Scanalyzed Powered Armor | -8/Materials | Hacked Cmb. Antigrav System | -7/Factory | Scanalyzed Adv. Weapon Cycler | -7/Factory | Scanalyzed Cold Fusion Reactor | -7/Factory | Scanalyzed Adv. Transmission Jammer | -7/Factory | Scanalyzed Lance | -7/Factory | Hacked Imp. Melee Analysis Suite | -7/Factory | Hacked Adv. Hardlight Generator | -7/Factory | Downloaded Combat Drone Bay | -7/Data Miner | Free Lgt. Regenerative Plating | -7/Data Miner | Free Tactical Coordination Suite | -7/Data Miner | Free Exp. Transmission Jammer | -7/Data Miner | Free Cloaking Device | -7/Data Miner | Free Mni. Smartbomb Launcher | -7/Data Miner | Free Kinetic Spear | -7/Data Miner | Free Quantum Capacitor | -6/Factory | Hacked Gravmag Array | -6/Factory | Hacked Core Analyzer | -6/Factory | Scanalyzed Imp. Force Field | -6/Factory | Hacked Imp. Armor Integrity Analyzer | -6/Factory | Hacked Imp. Powered Armor | -6/Factory | Hacked Adv. Reaction Control System | -5/Factory | Scanalyzed Imp. Actuator Array | -5/Factory | Scanalyzed Imp. Hardlight Generator | -5/Factory | Scanalyzed Adv. Field Recycling Unit | -5/Factory | Scanalyzed Microactuators | -5/Factory | Scanalyzed Adv. Datajack | -5/Factory | Hacked Particle Reactor | -5/Factory | Hacked Force Lance | -5/Factory | Hacked Exp. Terrain Scanner | -5/Factory | Hacked Exp. Signal Interpreter | -5/Factory | Hacked Linear Accelerator | -5/Factory | Hacked Adv. Armor Integrity Analyzer | -5/Factory | Hacked Gamma Bomb Array | -5/Factory | Hacked Adv. Powered Armor | -5/Factory | Hacked Adv. Cryofiber Web | -5/Factory | Hacked Arm. Heavy Treads | -5/Factory | Hacked F-cell Engine | -5/Factory | Hacked Adv. Focal Shield | -5/Extension | Hacked Nuclear Pulse Array | -5/Extension | Hacked Phase Gun | -5/Extension | Hacked Stasis Canceller | -5/Extension | Hacked Imp. Arc Projector | -5/Hub_04(d) | Hacked Lgt. Particle Reactor | -5/Hub_04(d) | Hacked Enh. Force Lance | -4/Factory | Hacked Antimatter Reactor | -4/Factory | Hacked Myomer Leg | -4/Factory | Hacked Exp. Biometal Heavy Treads | -4/Factory | Hacked Assault Drone Bay | -4/Zhirov | Free Exp. Optical Array | -4/Zhirov | Free Imp. Arc Thrower | -4/Zhirov | Free Cmb. Linear Gravjet | -3/Research | Hacked Adv. Force Booster | -3/Research | Hacked Lgt. Quantum Reactor | -3/Research | Hacked Enh. Quantum Rifle | -3/Research | Hacked Imp. Stasis Canceller | -3/Research | Hacked Nova Cannon | -3/Research | Hacked Exp. Matter Compressor | -3/Research | Scanalyzed Exp. Actuator Array | -3/Research | Hacked Biometal Heavy Treads | -3/Research | Hacked Stasis Projector | -3/Research | Hacked Imp. Overload Amplifier | -3/Research | Hacked Enh. Gamma Bomb Array | -3/Testing | Hacked Hvy. Regenerative Plating | -3/Testing | Hacked Exp. System Shield | -3/Testing | Hacked Quantum Reactor | -2/Quarantine | Hacked Adv. Heavy Siege Treads | -2/Quarantine | Hacked Adv. Phase Shifter | -2/Quarantine | Hacked Thermal Barrier | -2/Quarantine | Hacked Robot Schematics ------------------ M-13 Machinist | -10/Mines | Hacked O-16 Technician | -10/Mines | Hacked G-47 Trooper | -7/Factory | Downloaded S-27 Virus | -7/Data Miner | Free G-50 Soldier | -7/Data Miner | Free G-67 Veteran | -7/Data Miner | Free L-41 Fighter | -7/Data Miner | Free P-70 Sage | -7/Data Miner | Free I-36 Angel | -7/Data Miner | Free I-47 Archangel | -7/Data Miner | Free M-22 Extractor | -6/Factory | Downloaded B-60 Warrior | -5/Factory | Hacked E-15 Imp | -5/Factory | Hacked M-36 Artificer | -4/Factory | Hacked H-77 Assassin | -4/Factory | Hacked Fabricated ------------ Cmb. Antigrav System | x2 | -7/Factory Powered Armor | x2 | -7/Factory Cold Fusion Reactor | x1 | -7/Factory Kinetic Spear | x1 | -6/Factory Exp. Transmission Jammer | x1 | -6/Factory Imp. Powered Armor | x1 | -5/Factory Adv. Hardlight Generator | x2 | -5/Factory Imp. Powered Armor | x1 | -5/Factory Kinetic Spear | x1 | -5/Factory Adv. Armor Integrity Analyzer | x1 | -4/Factory Adv. Powered Armor | x1 | -4/Factory Exp. Terrain Scanner | x1 | -4/Factory Enh. Force Lance | x1 | -4/Factory Cmb. Linear Gravjet | x2 | -3/Research Exp. Actuator Array | x1 | -3/Testing Cmb. Linear Gravjet | x2 | -3/Testing M-36 Artificer | x1 | -3/Testing Alien Tech Used ----------------- Core Expander Integrated Reactor Integrated Heat Negator Subatomic Replicator Integrated Singularity Reactor Transdimensional Reconstructor Integrity Redistributor Achievements -------------- Behind The Curtain Sorry Old Pal Special Delivery Challenges ------------ None RPGLIKE | -11 -10 -10 -9 -9 -9 -8 -8 -7 -7 -7 -7 -6 -6 -6 -6 -6 -6 -5 -5 -5 -5 -5 -5 -4 -4 -4 -4 -3 -3 -3 -2 -2 -2 -1 -1 -1 --------- Run | Scr Mat Min Mat Min Exi Min Mat Fac Low Low Dat Pro Fac Low Low Zio Dee Pro Fac Ext Cet Arc Hub Fac Upp Upp Zhi Pro Res Tes Res Qua Sec Acc Com Ac0 Levels Raised 36 | . 1 1 4 1 . 1 3 3 1 . . 2 2 . . 1 . . 2 1 . . 1 1 1 . . . 2 1 2 . 1 2 2 . XP Earned 57865 | 3000 2085 1190 6644 1471 243 1405 4406 4424 957 741 220 2334 2735 477 586 143 289 705 3289 789 430 238 1210 1705 295 226 105 1041 2473 1392 2472 839 1496 3134 2035 641 XP Spent 56860 | 2800 1690 850 6180 . 800 2000 4725 4930 1250 . . 3070 3125 . . . . . 4180 . . . . 4050 . . . . 3800 2720 . . 4730 1560 2000 2400 Upgrades 90 | 9 3 2 13 . 1 1 8 5 1 . . 2 6 . . . . . 5 . . . . 2 . . . . 1 4 . . 6 8 1 12 Power Slot 2 | . . . 1 . . . . 1 . . . . . . . . . . . . . . . . . . . . . . . . . . . . Propulsion Slot 3 | 1 . . . . 1 . . 1 . . . . . . . . . . . . . . . . . . . . . . . . . . . . Utility Slot 13 | 1 1 . 3 . . 1 1 1 . . . 1 . . . . . . 1 . . . . 1 . . . . 1 . . . 1 . . . Weapon Slot 3 | 1 1 . . . . . 1 . . . . . . . . . . . . . . . . . . . . . . . . . . . . . Core Integrity 24 | . . . 4 . . . 3 . . . . . . . . . . . . . . . . . . . . . . . . . 4 1 . 12 Heat Dissipation 8 | . . . 4 . . . . . . . . . . . . . . . 2 . . . . . . . . . . 1 . . 1 . . . Energy Generation 2 | . . . . . . . . 1 . . . . . . . . . . . . . . . 1 . . . . . . . . . . . . Energy Storage 1 | . . . . . . . . . . . . . . . . . . . . . . . . . . . . . . 1 . . . . . . Mass Support 2 | . . 1 . . . . . . . . . . . . . . . . . . . . . . . . . . . 1 . . . . . . Inventory Capacity 8 | 2 . 1 1 . . . . . 1 . . . 1 . . . . . . . . . . . . . . . . 1 . . . . 1 . Sight Range 2 | 1 . . . . . . . . . . . . . . . . . . . . . . . . . . . . . . . . . 1 . . Sensor Range 9 | . . . . . . . . . . . . . 3 . . . . . . . . . . . . . . . . . . . . 6 . . Terrain Scan Density 4 | 1 1 . . . . . . 1 . . . 1 . . . . . . . . . . . . . . . . . . . . . . . . Melee Accuracy 3 | . . . . . . . 1 . . . . . . . . . . . 2 . . . . . . . . . . . . . . . . . Hack Attack % 3 | 1 . . . . . . 1 . . . . . 1 . . . . . . . . . . . . . . . . . . . . . . . Hack Defense % 3 | 1 . . . . . . 1 . . . . . 1 . . . . . . . . . . . . . . . . . . . . . . . Protomatter Created 11503 | . 261 5 350 102 . 23 525 764 96 229 . 98 556 265 377 99 334 184 990 298 166 63 182 637 131 49 78 217 989 566 397 238 746 646 231 611 Integrity Restored 22969 | . 588 15 1142 255 . 54 1561 1106 478 474 . 336 1206 521 538 22 1309 153 1251 805 230 7 483 1718 384 135 177 289 1052 388 580 277 1266 1493 478 2198 Core 16932 | . 450 15 798 146 . 54 1243 686 288 333 . 302 785 356 380 12 808 112 896 536 141 4 388 1351 118 63 64 187 765 213 346 228 1212 1123 346 2183 Parts 6037 | . 138 . 344 109 . . 318 420 190 141 . 34 421 165 158 10 501 41 355 269 89 3 95 367 266 72 113 102 287 175 234 49 54 370 132 15 Protomatter Decayed 5150 | . 46 . 12 14 . . . 260 44 148 . 96 160 . 112 110 16 131 560 235 249 114 684 102 21 . . 18 543 432 197 146 484 216 . . Game ------ Seed ProtonMicroArray Manual? 0 Play Time 08:29:57 Cumulative 304.4 hours Start 2020.09.29 @ 15:25:32 End 2020.09.30 @ 01:31:46 Sessions 1 Manual Loads 0 Difficulty Rogue Special Mode Winter2019/RPGLIKE Game No. 117 Rogue 117 Adventurer 0 Explorer 0 Win Type - Total 4 Types 3/0/0/1/0/0/0/0/0 Lore% 84 Gallery% 90 Achievement% 71 Wizard Run 0 Options --------- ASCII 0 Keyboard 0 Movement Numpad Keybinds 0 Fullscreen 1 Font 18/SmallcapsGlow Map View 76x50 Tactical HUD 1 Map Filters NONE Filters NONE Steam 1 RUN: 91270f1b-b9af-466e-b302-3e7a1d408f72